Workbook

Sheet 波形
V3: GND
D5: 3.3 V
O6: 表示しない
E7: 12 mA | X7: 無し
E8: .5 ns
F12: 無し | M12: 50Ω | P12: 15 cm

Sheet Read_Me
B2: プリント配線板などの分布定数線路の信号の解析ツールです.
B4: 1. 何ができるか
B5: プリント配線板の特性インピーダンスや回路定数を選択することにより, 近端, 途中, 遠端 の波形を解析して表示します.⇒｢波形｣のシートをクリック下さい.
B7: 2. 使い方
B8: 解説が不要なくらい簡単です.
B9: 図の中のプルダウンメニューから,定数を選択下さい.
B10: 各パラメータは,
B11: 電源電圧 | D11: 1.0V,1.8V, 2.5V, 3.3V, 5V を準備しています. このほかに,%表示も選択できます.
B12: 駆動能力 | D12: ドライバのカタログ記載の駆動能力です. ここでは, 実力がカタログ記載値の1.5倍あると仮定して, 出力が0.4Vのときの抵抗値に換算しています.
D13: (例 : 4mA=66.7Ω, 24mA=11.1Ω)
B14: 立ち上がり時間 | D14: ドライバの立ち上がり(または下がり)時間を 0.1ns から 2ns から選択します.
B15: ダンピング抵抗 | D15: ドライバの出力に直列に挿入するダンピング抵抗です.
D16: 送端終端は,ドライバの出力抵抗とダンピング抵抗の和がパターンの特性インピーダンスに等しくなるようにダンピング抵抗を選択したものです.
D17: 双方向は, 遠端開放のときに, 近端の最初の立ち上がり電圧と, 遠端の最初の立ち上がりによる跳ね返りの電圧が等しくなるようにダンピング
D18: 抵抗を選択したものです. 遠端に終端抵抗を接続した場合は意味がありません.
D19: オーバシュート10%,20%は, 遠端開放のときに, 遠端の最初のオーバシュートが10%, 20%になるように選んだダンピング抵抗の値です.
B20: 特性インピーダンス | D20: プリント配線板の特性インピーダンスです. 低いもので50Ω, 高いもので100Ω程度です.
B21: パターン長 | D21: 解析したいパターンの長さです. 5cmから30cmから選択します.
B22: 中間点 | D22: 近端,遠端のほかに, その途中の波形を選択します. 近端から遠端までを4等分した中から選択します. 中間点の波形を表示しない選択もできます.
B23: 終端抵抗 | D23: 遠端に接続する終端抵抗です. 準備した抵抗値(無しも含む)から選択します.
B24: 終端電圧 | D24: 終端抵抗の接続先の電圧です. 終端抵抗を｢無し｣に選ぶと, この電圧は意味がありません.(接続されない)
B26: 3. 波形の意味
B27: 近端を青, 遠端をオレンジで表しています. その途中は, 緑で表示します. (途中は｢表示しない｣も選択できます)
B28: 波形はゼロ付近の表示のために, 意識的にわずかな固定値を加えたりしています. ゼロのはずがゼロになってない場合があります.
B30: 4. RESET
B31: 図とグラフが画面全体に収まるように設定します.
B33: 5. その他
B34: 準備した値以外を使いたい場合は,Dataのシートの緑色のセルに値を書き込んで下さい.
B35: 隣のブルーのセルは, コメントです. 自分で書き入れて下さい.
B44: v1.1 | C44: 2023-09-20 | E44: 初版
B45: v1.2 | C45: 2023-10-15 | E45: 終端電圧の誤記修正

Sheet Data
A1: IoL | E1: Dumping R | H1: Zo | K1: tr/tf | N1: 線長 | Q1: Vcc | T1: 終端抵抗 | W1: 終端電圧 | Z1: 中間点
A2: =TEXT(B2," ##")&" mA" -> 2 mA | B2: 2 | C2: =400/B2/1.5 -> 133.3333333 | E2: 無し | F2: 0 | H2: =TEXT(I2," ##")&"Ω" -> 30Ω | I2: 30 | K2: =TEXT(L2," ##.0")&" ns" -> .1 ns | L2: 0.1 | N2: =TEXT(O2," ##")&" cm" -> 5 cm | O2: 5 | Q2: =TEXT(R2," ##")&" V" -> 1 V | R2: 1 | T2: 無し | U2: 1000000 | W2: GND | X2: 0 | Z2: 表示しない | AA2: 1
A3: 4 mA | B3: 4 | C3: 66.66666667 | E3: =TEXT(F3," ##")&"Ω" -> 10Ω | F3: 10 | H3: 40Ω | I3: 40 | K3: .2 ns | L3: 0.2 | N3: 10 cm | O3: 10 | Q3: =TEXT(R3," ##.#")&" V" -> 1.8 V | R3: 1.8 | T3: ="整合("&TEXT(U3,"###")&"Ω)" -> 整合(50Ω) | U3: =計算!B3 -> 50 | W3: 1.5 V | X3: 1.5 | Z3: 近端から1/4 | AA3: 0.25
A4: 6 mA | B4: 6 | C4: 44.44444444 | E4: 15Ω | F4: 15 | H4: 50Ω | I4: 50 | K4: .5 ns | L4: 0.5 | N4: 15 cm | O4: 15 | Q4: =TEXT(R4," ##.#")&" V" -> 2.5 V | R4: 2.5 | T4: =TEXT(U4," ##")&"Ω" -> 20Ω | U4: 20 | W4: ="Vcc/2 ("&X4&"V)" -> Vcc/2 (1.65V) | X4: =計算!B12/2 -> 1.65 | Z4: 中間点 | AA4: 0.5
A5: 8 mA | B5: 8 | C5: 33.33333333 | E5: 22Ω | F5: 22 | H5: 55Ω | I5: 55 | K5: 1.0 ns | L5: 1 | N5: 20 cm | O5: 20 | Q5: =TEXT(R5," ##.#")&" V" -> 3.3 V | R5: 3.3 | T5: 30Ω | U5: 30 | W5: ="Vcc ("&X5&"V)" -> Vcc (3.3V) | X5: =計算!B12 -> 3.3 | Z5: 遠端から1/4 | AA5: 0.75
A6: 12 mA | B6: 12 | C6: 22.22222222 | E6: 33Ω | F6: 33 | H6: 60Ω | I6: 60 | K6: 1.5 ns | L6: 1.5 | N6: 25 cm | O6: 25 | Q6: =TEXT(R6," ##")&" V" -> 5 V | R6: 5 | T6: 40Ω | U6: 40
A7: 16 mA | B7: 16 | C7: 16.66666667 | E7: 36Ω | F7: 36 | H7: 65Ω | I7: 65 | K7: 2.0 ns | L7: 2 | N7: 30 cm | O7: 30 | Q7: % | R7: 100 | T7: 50Ω | U7: 50
A8: 24 mA | B8: 24 | C8: 11.11111111 | E8: 39Ω | F8: 39 | H8: 70Ω | I8: 70 | K8: .0 ns | N8: cm | T8: 60Ω | U8: 60
A9: 48 mA | B9: 48 | C9: 5.555555556 | E9: 43Ω | F9: 43 | H9: 80Ω | I9: 80 | N9: cm | T9: 70Ω | U9: 70
E10: 47Ω | F10: 47 | H10: 90Ω | I10: 90 | T10: 80Ω | U10: 80
E11: 51Ω | F11: 51 | H11: 100Ω | I11: 100 | T11: 90Ω | U11: 90
E12: 56Ω | F12: 56 | H12: Ω | T12: 100Ω | U12: 100
E13: 62Ω | F13: 62 | H13: Ω | T13: 150Ω | U13: 150
E14: =IF(計算!B3-計算!C1>0,"送端終端("&TEXT(F14,"###")&"Ω)","送端終端解なし") -> 送端終端(28Ω) | F14: =IF(計算!B3-計算!C1>0,計算!B3-計算!C1,0) -> 27.77777778 | T14: 200Ω | U14: 200
E15: =IF(計算!B3/3-計算!C1>0,"双方向("&TEXT(F15,"###")&"Ω)","双方向解なし") -> 双方向解なし | F15: =IF(計算!B3/3-計算!C1>0,計算!B3/3-計算!C1,0) -> 0 | T15: 300Ω | U15: 300
E16: =IF(((1+計算!$B$10)/1.1-1)*計算!$B$3-計算!$C$1>0,"ｵｰﾊﾞｼｭｰﾄ10%("&TEXT($F16,"##Ω)"),"ｵｰﾊﾞｼｭｰﾄ10%解なし") -> ｵｰﾊﾞｼｭｰﾄ10%(19Ω) | F16: =IF(((1+計算!$B$10)/1.1-1)*計算!$B$3-計算!$C$1>0,((1+計算!$B$10)/1.1-1)*計算!$B$3-計算!$C$1,0) -> 18.68232346
E17: =IF(((1+計算!$B$10)/1.2-1)*計算!$B$3-計算!$C$1>0,"ｵｰﾊﾞｼｭｰﾄ20%("&TEXT($F17,"##Ω)"),"ｵｰﾊﾞｼｭｰﾄ20%解なし") -> ｵｰﾊﾞｼｭｰﾄ20%(11Ω) | F17: =IF(((1+計算!$B$10)/1.2-1)*計算!$B$3-計算!$C$1>0,((1+計算!$B$10)/1.2-1)*計算!$B$3-計算!$C$1,0) -> 11.10694465 | T17: Ω
E18: =TEXT(F18," ##")&"Ω" -> Ω

Sheet 計算 (hidden)
A1: R1(Ω) | B1: =C1+VLOOKUP(波形!F12,Data!E2:F18,2,0)+0.000000001 -> 22.22222222 | C1: =VLOOKUP(波形!E7,Data!A2:C9,3,0) -> 22.22222222 | E1: 近端 | F1: 0 | K1: 0 | L1: =K1+2 -> 2 | M1: 4 | N1: 6 | O1: 8 | P1: 10 | Q1: 12 | R1: 14 | S1: 16 | T1: 18 | U1: 20 | V1: 22 | Y1: 1 | Z1: =Y1+2 -> 3 | AA1: 5 | AB1: 7 | AC1: 9 | AD1: 11 | AE1: 13 | AF1: 15 | AG1: 17 | AH1: 19 | AI1: 21 | AM1: 遠端 | AN1: =B4 -> 0.975 | AS1: 0 | AT1: =AS1+2 -> 2 | AU1: 4 | AV1: 6 | AW1: 8 | AX1: 10 | AY1: 12 | AZ1: 14 | BA1: 16 | BB1: 18 | BC1: 20 | BD1: 22 | BG1: 1 | BH1: =BG1+2 -> 3 | BI1: 5 | BJ1: 7 | BK1: 9 | BL1: 11 | BM1: 13 | BN1: 15 | BO1: 17 | BP1: 19 | BQ1: 21 | BU1: 中間 | BV1: =B13*B4 -> 0.975 | CA1: 0 | CB1: =CA1+2 -> 2 | CC1: 4 | CD1: 6 | CE1: 8 | CF1: 10 | CG1: 12 | CH1: 14 | CI1: 16 | CJ1: 18 | CK1: 20 | CL1: 22 | CO1: 1 | CP1: =CO1+2 -> 3 | CQ1: 5 | CR1: 7 | CS1: 9 | CT1: 11 | CU1: 13 | CV1: 15 | CW1: 17 | CX1: 19 | CY1: 21
A2: R2(Ω) | B2: =C2+0.000000001 -> 1000000 | C2: =VLOOKUP(波形!X7,Data!T2:U17,2,0) -> 1000000 | K2: =F4 -> 0 | L2: =F5 -> 1.95 | M2: =F6 -> 3.9 | N2: =F7 -> 5.85 | O2: =F8 -> 7.8 | P2: =F9 -> 9.75 | Q2: =F10 -> 11.7 | R2: =F11 -> 13.65 | S2: =F12 -> 15.6 | T2: =F13 -> 17.55 | U2: =F14 -> 19.5 | V2: =F15 -> 21.45 | Y2: =F29 -> 1.95 | Z2: =F30 -> 3.9 | AA2: =F31 -> 5.85 | AB2: =F32 -> 7.8 | AC2: =F33 -> 9.75 | AD2: =F34 -> 11.7 | AE2: =F35 -> 13.65 | AF2: =F36 -> 15.6 | AG2: =F37 -> 17.55 | AH2: =F38 -> 19.5 | AI2: =F39 -> 21.45 | AS2: =AN4 -> 0.975 | AT2: =AN5 -> 2.925 | AU2: =AN6 -> 4.875 | AV2: =AN7 -> 6.825 | AW2: =AN8 -> 8.775 | AX2: =AN9 -> 10.725 | AY2: =AN10 -> 12.675 | AZ2: =AN11 -> 14.625 | BA2: =AN12 -> 16.575 | BB2: =AN13 -> 18.525 | BC2: =AN14 -> 20.475 | BD2: =AN15 -> 22.425 | BG2: =AN29 -> 0.975 | BH2: =AN30 -> 2.925 | BI2: =AN31 -> 4.875 | BJ2: =AN32 -> 6.825 | BK2: =AN33 -> 8.775 | BL2: =AN34 -> 10.725 | BM2: =AN35 -> 12.675 | BN2: =AN36 -> 14.625 | BO2: =AN37 -> 16.575 | BP2: =AN38 -> 18.525 | BQ2: =AN39 -> 20.475 | CA2: =BV4 -> 0.975 | CB2: =BV5 -> 2.925 | CC2: =BV6 -> 4.875 | CD2: =BV7 -> 6.825 | CE2: =BV8 -> 8.775 | CF2: =BV9 -> 10.725 | CG2: =BV10 -> 12.675 | CH2: =BV11 -> 14.625 | CI2: =BV12 -> 16.575 | CJ2: =BV13 -> 18.525 | CK2: =BV14 -> 20.475 | CL2: =BV15 -> 22.425 | CO2: =BV29 -> 0.975 | CP2: =BV30 -> 2.925 | CQ2: =BV31 -> 4.875 | CR2: =BV32 -> 6.825 | CS2: =BV33 -> 8.775 | CT2: =BV34 -> 10.725 | CU2: =BV35 -> 12.675 | CV2: =BV36 -> 14.625 | CW2: =BV37 -> 16.575 | CX2: =BV38 -> 18.525 | CY2: =BV39 -> 20.475
A3: Z0(Ω) | B3: =VLOOKUP(波形!M12,Data!H2:I13,2,0) -> 50 | F3: =-$C$4+F$1 -> -1.95 | K3: =G4 -> 2.284615385 | L3: =G5 -> -0.8786103594 | M3: =G6 -> 0.3378932703 | N3: =G7 -> -0.1299459548 | O3: =G8 -> 0.04997421573 | P3: =G9 -> -0.01921893021 | Q3: =G10 -> 0.007391157083 | R3: =G11 -> -0.002842468463 | S3: =G12 -> 0.001093147781 | T3: =G13 -> -0.0004203994121 | U3: =G14 -> 0.0001616759132 | V3: =G15 -> -6.217682553e-05 | Y3: =G29 -> 2.284386934 | Z3: =G30 -> -0.8785225027 | AA3: =G31 -> 0.3378594826 | AB3: =G32 -> -0.1299329609 | AC3: =G33 -> 0.04996921856 | AD3: =G34 -> -0.01921700842 | AE3: =G35 -> 0.007390418004 | AF3: =G36 -> -0.00284218423 | AG3: =G37 -> 0.001093038472 | AH3: =G38 -> -0.0004203573743 | AI3: =G39 -> 0.0001616597464 | AN3: =-$C$4+AN$1 -> -0.975 | AQ3: =0 -> 0 | AS3: =AO4 -> 2.284615385 | AT3: =AO5 -> -0.8786103594 | AU3: =AO6 -> 0.3378932703 | AV3: =AO7 -> -0.1299459548 | AW3: =AO8 -> 0.04997421573 | AX3: =AO9 -> -0.01921893021 | AY3: =AO10 -> 0.007391157083 | AZ3: =AO11 -> -0.002842468463 | BA3: =AO12 -> 0.001093147781 | BB3: =AO13 -> -0.0004203994121 | BC3: =AO14 -> 0.0001616759132 | BD3: =AO15 -> -6.217682553e-05 | BG3: =AO29 -> 2.284386934 | BH3: =AO30 -> -0.8785225027 | BI3: =AO31 -> 0.3378594826 | BJ3: =AO32 -> -0.1299329609 | BK3: =AO33 -> 0.04996921856 | BL3: =AO34 -> -0.01921700842 | BM3: =AO35 -> 0.007390418004 | BN3: =AO36 -> -0.00284218423 | BO3: =AO37 -> 0.001093038472 | BP3: =AO38 -> -0.0004203573743 | BQ3: =AO39 -> 0.0001616597464 | BV3: =-$C$4+BV$1 -> -0.975 | BY3: =0 -> 0 | CA3: =BW4 -> 2.284615385 | CB3: =BW5 -> -0.8786103594 | CC3: =BW6 -> 0.3378932703 | CD3: =BW7 -> -0.1299459548 | CE3: =BW8 -> 0.04997421573 | CF3: =BW9 -> -0.01921893021 | CG3: =BW10 -> 0.007391157083 | CH3: =BW11 -> -0.002842468463 | CI3: =BW12 -> 0.001093147781 | CJ3: =BW13 -> -0.0004203994121 | CK3: =BW14 -> 0.0001616759132 | CL3: =BW15 -> -6.217682553e-05 | CO3: =BW29 -> 2.284386934 | CP3: =BW30 -> -0.8785225027 | CQ3: =BW31 -> 0.3378594826 | CR3: =BW32 -> -0.1299329609 | CS3: =BW33 -> 0.04996921856 | CT3: =BW34 -> -0.01921700842 | CU3: =BW35 -> 0.007390418004 | CV3: =BW36 -> -0.00284218423 | CW3: =BW37 -> 0.001093038472 | CX3: =BW38 -> -0.0004203573743 | CY3: =BW39 -> 0.0001616597464
A4: τ(ns ) | B4: =$B$5*$B$6 -> 0.975 | C4: =B4*2 -> 1.95 | E4: vR | F4: =F3+$C$4 -> 0 | G4: =$B$3/($B$1+$B$3)*$B$12 -> 2.284615385 | I4: =0 -> 0 | J4: =-B4 -> -0.975 | AK4: =AK5 -> 0.01 | AM4: vR | AN4: =AN3+$C$4 -> 0.975 | AO4: =$B$3/($B$1+$B$3)*$B$12 -> 2.284615385 | AR4: =J4 -> -0.975 | BS4: =BS5 -> 0.01 | BU4: vR | BV4: =BV3+$C$4 -> 0.975 | BW4: =$B$3/($B$1+$B$3)*$B$12 -> 2.284615385 | BZ4: =J4 -> -0.975 | DA4: =DA5 -> 0.01
A5: Delay(ns/m) | B5: 6.5 | F5: =F4+$C$4 -> 1.95 | G5: =$B$9*G29 -> -0.8786103594 | I5: =I4+1 -> 1 | J5: =SMALL(F$4:F$50,I5) -> 0 | K5: =IF($J5<K$2,0,IF($J5-K$2>$B$7,K$3,($J5-K$2)/$B$7*K$3)) -> 0 | L5: 0 | M5: 0 | N5: 0 | O5: 0 | P5: 0 | Q5: 0 | R5: 0 | S5: 0 | T5: 0 | U5: 0 | V5: 0 | W5: =SUM(K5:V5) -> 0 | Y5: =IF($J5<Y$2,0,IF($J5-Y$2>$B$7,Y$3,($J5-Y$2)/$B$7*Y$3)) -> 0 | Z5: 0 | AA5: 0 | AB5: 0 | AC5: 0 | AD5: 0 | AE5: 0 | AF5: 0 | AG5: 0 | AH5: 0 | AI5: 0 | AJ5: =SUM(Y5:AI5) -> 0 | AK5: =W5+AJ5+$B$15 -> 0.01 | AN5: =AN4+$C$4 -> 2.925 | AO5: =$B$9*AO29 -> -0.8786103594 | AQ5: =AQ3+1 -> 1 | AR5: =SMALL(AN$4:AN$50,AQ5) -> 0.975 | AS5: =IF($AR5<AS$2,0,IF($AR5-AS$2>$B$7,AS$3,($AR5-AS$2)/$B$7*AS$3)) -> 0 | AT5: 0 | AU5: 0 | AV5: 0 | AW5: 0 | AX5: 0 | AY5: 0 | AZ5: 0 | BA5: 0 | BB5: 0 | BC5: 0 | BD5: 0 | BE5: =SUM(AS5:BD5) -> 0 | BG5: =IF($AR5<BG$2,0,IF($AR5-BG$2>$B$7,BG$3,($AR5-BG$2)/$B$7*BG$3)) -> 0 | BH5: 0 | BI5: 0 | BJ5: 0 | BK5: 0 | BL5: 0 | BM5: 0 | BN5: 0 | BO5: 0 | BP5: 0 | BQ5: 0 | BR5: =SUM(BG5:BQ5) -> 0 | BS5: =BE5+BR5+$B$15 -> 0.01 | BV5: =BV4+$C$4 -> 2.925 | BW5: =$B$9*BW29 -> -0.8786103594 | BY5: =BY3+1 -> 1 | BZ5: =SMALL(BV$4:BV$50,BY5) -> 0.975 | CA5: =IF($BZ5<CA$2,0,IF($BZ5-CA$2>$B$7,CA$3,($BZ5-CA$2)/$B$7*CA$3)) -> 0 | CB5: 0 | CC5: 0 | CD5: 0 | CE5: 0 | CF5: 0 | CG5: 0 | CH5: 0 | CI5: 0 | CJ5: 0 | CK5: 0 | CL5: 0 | CM5: =SUM(CA5:CL5) -> 0 | CO5: =IF($BZ5<CO$2,0,IF($BZ5-CO$2>$B$7,CO$3,($BZ5-CO$2)/$B$7*CO$3)) -> 0 | CP5: 0 | CQ5: 0 | CR5: 0 | CS5: 0 | CT5: 0 | CU5: 0 | CV5: 0 | CW5: 0 | CX5: 0 | CY5: 0 | CZ5: =SUM(CO5:CY5) -> 0 | DA5: =CM5+CZ5+$B$15 -> 0.01
A6: Length(m) | B6: =VLOOKUP(波形!P12,Data!N2:O9,2,0)*0.01 -> 0.15 | F6: 3.9 | G6: 0.3378932703 | I6: 2 | J6: =SMALL(F$4:F$50,I6) -> 0.5 | K6: 2.284615385 | L6: 0 | M6: 0 | N6: 0 | O6: 0 | P6: 0 | Q6: 0 | R6: 0 | S6: 0 | T6: 0 | U6: 0 | V6: 0 | W6: 2.284615385 | Y6: 0 | Z6: 0 | AA6: 0 | AB6: 0 | AC6: 0 | AD6: 0 | AE6: 0 | AF6: 0 | AG6: 0 | AH6: 0 | AI6: 0 | AJ6: 0 | AK6: =W6+AJ6+$B$15 -> 2.294615385 | AN6: 4.875 | AO6: 0.3378932703 | AQ6: =AQ5+1 -> 2 | AR6: =SMALL(AN$4:AN$50,AQ6) -> 0.975 | AS6: 0 | AT6: 0 | AU6: 0 | AV6: 0 | AW6: 0 | AX6: 0 | AY6: 0 | AZ6: 0 | BA6: 0 | BB6: 0 | BC6: 0 | BD6: 0 | BE6: 0 | BG6: 0 | BH6: 0 | BI6: 0 | BJ6: 0 | BK6: 0 | BL6: 0 | BM6: 0 | BN6: 0 | BO6: 0 | BP6: 0 | BQ6: 0 | BR6: 0 | BS6: =BE6+BR6+$B$15 -> 0.01 | BV6: 4.875 | BW6: 0.3378932703 | BY6: =BY5+1 -> 2 | BZ6: =SMALL(BV$4:BV$50,BY6) -> 0.975 | CA6: 0 | CB6: 0 | CC6: 0 | CD6: 0 | CE6: 0 | CF6: 0 | CG6: 0 | CH6: 0 | CI6: 0 | CJ6: 0 | CK6: 0 | CL6: 0 | CM6: 0 | CO6: 0 | CP6: 0 | CQ6: 0 | CR6: 0 | CS6: 0 | CT6: 0 | CU6: 0 | CV6: 0 | CW6: 0 | CX6: 0 | CY6: 0 | CZ6: 0 | DA6: =CM6+CZ6+$B$15 -> 0.01
A7: tr(ns) | B7: =VLOOKUP(波形!E8,Data!K2:L8,2,0) -> 0.5 | F7: 5.85 | G7: -0.1299459548 | I7: 3 | J7: 1.95 | K7: 2.284615385 | L7: 0 | M7: 0 | N7: 0 | O7: 0 | P7: 0 | Q7: 0 | R7: 0 | S7: 0 | T7: 0 | U7: 0 | V7: 0 | W7: 2.284615385 | Y7: 0 | Z7: 0 | AA7: 0 | AB7: 0 | AC7: 0 | AD7: 0 | AE7: 0 | AF7: 0 | AG7: 0 | AH7: 0 | AI7: 0 | AJ7: 0 | AK7: 2.294615385 | AN7: 6.825 | AO7: -0.1299459548 | AQ7: 3 | AR7: 1.475 | AS7: 2.284615385 | AT7: 0 | AU7: 0 | AV7: 0 | AW7: 0 | AX7: 0 | AY7: 0 | AZ7: 0 | BA7: 0 | BB7: 0 | BC7: 0 | BD7: 0 | BE7: 2.284615385 | BG7: 2.284386934 | BH7: 0 | BI7: 0 | BJ7: 0 | BK7: 0 | BL7: 0 | BM7: 0 | BN7: 0 | BO7: 0 | BP7: 0 | BQ7: 0 | BR7: 2.284386934 | BS7: 4.579002319 | BV7: 6.825 | BW7: -0.1299459548 | BY7: 3 | BZ7: 1.475 | CA7: 2.284615385 | CB7: 0 | CC7: 0 | CD7: 0 | CE7: 0 | CF7: 0 | CG7: 0 | CH7: 0 | CI7: 0 | CJ7: 0 | CK7: 0 | CL7: 0 | CM7: 2.284615385 | CO7: 2.284386934 | CP7: 0 | CQ7: 0 | CR7: 0 | CS7: 0 | CT7: 0 | CU7: 0 | CV7: 0 | CW7: 0 | CX7: 0 | CY7: 0 | CZ7: 2.284386934 | DA7: 4.579002319
F8: 7.8 | G8: 0.04997421573 | I8: 4 | J8: 1.95 | K8: 2.284615385 | L8: 0 | M8: 0 | N8: 0 | O8: 0 | P8: 0 | Q8: 0 | R8: 0 | S8: 0 | T8: 0 | U8: 0 | V8: 0 | W8: 2.284615385 | Y8: 0 | Z8: 0 | AA8: 0 | AB8: 0 | AC8: 0 | AD8: 0 | AE8: 0 | AF8: 0 | AG8: 0 | AH8: 0 | AI8: 0 | AJ8: 0 | AK8: 2.294615385 | AN8: 8.775 | AO8: 0.04997421573 | AQ8: 4 | AR8: 1.475 | AS8: 2.284615385 | AT8: 0 | AU8: 0 | AV8: 0 | AW8: 0 | AX8: 0 | AY8: 0 | AZ8: 0 | BA8: 0 | BB8: 0 | BC8: 0 | BD8: 0 | BE8: 2.284615385 | BG8: 2.284386934 | BH8: 0 | BI8: 0 | BJ8: 0 | BK8: 0 | BL8: 0 | BM8: 0 | BN8: 0 | BO8: 0 | BP8: 0 | BQ8: 0 | BR8: 2.284386934 | BS8: 4.579002319 | BV8: 8.775 | BW8: 0.04997421573 | BY8: 4 | BZ8: 1.475 | CA8: 2.284615385 | CB8: 0 | CC8: 0 | CD8: 0 | CE8: 0 | CF8: 0 | CG8: 0 | CH8: 0 | CI8: 0 | CJ8: 0 | CK8: 0 | CL8: 0 | CM8: 2.284615385 | CO8: 2.284386934 | CP8: 0 | CQ8: 0 | CR8: 0 | CS8: 0 | CT8: 0 | CU8: 0 | CV8: 0 | CW8: 0 | CX8: 0 | CY8: 0 | CZ8: 2.284386934 | DA8: 4.579002319
A9: r1 | B9: =(B1-$B$3)/(B1+$B$3) -> -0.3846153846 | F9: 9.75 | G9: -0.01921893021 | I9: 5 | J9: 2.45 | K9: 2.284615385 | L9: -0.8786103594 | M9: 0 | N9: 0 | O9: 0 | P9: 0 | Q9: 0 | R9: 0 | S9: 0 | T9: 0 | U9: 0 | V9: 0 | W9: 1.406005025 | Y9: 2.284386934 | Z9: 0 | AA9: 0 | AB9: 0 | AC9: 0 | AD9: 0 | AE9: 0 | AF9: 0 | AG9: 0 | AH9: 0 | AI9: 0 | AJ9: 2.284386934 | AK9: 3.70039196 | AN9: 10.725 | AO9: -0.01921893021 | AQ9: 5 | AR9: 2.925 | AS9: 2.284615385 | AT9: 0 | AU9: 0 | AV9: 0 | AW9: 0 | AX9: 0 | AY9: 0 | AZ9: 0 | BA9: 0 | BB9: 0 | BC9: 0 | BD9: 0 | BE9: 2.284615385 | BG9: 2.284386934 | BH9: 0 | BI9: 0 | BJ9: 0 | BK9: 0 | BL9: 0 | BM9: 0 | BN9: 0 | BO9: 0 | BP9: 0 | BQ9: 0 | BR9: 2.284386934 | BS9: 4.579002319 | BV9: 10.725 | BW9: -0.01921893021 | BY9: 5 | BZ9: 2.925 | CA9: 2.284615385 | CB9: 0 | CC9: 0 | CD9: 0 | CE9: 0 | CF9: 0 | CG9: 0 | CH9: 0 | CI9: 0 | CJ9: 0 | CK9: 0 | CL9: 0 | CM9: 2.284615385 | CO9: 2.284386934 | CP9: 0 | CQ9: 0 | CR9: 0 | CS9: 0 | CT9: 0 | CU9: 0 | CV9: 0 | CW9: 0 | CX9: 0 | CY9: 0 | CZ9: 2.284386934 | DA9: 4.579002319
A10: r2 | B10: =(B2-$B$3)/(B2+$B$3) -> 0.999900005 | F10: 11.7 | G10: 0.007391157083 | I10: 6 | J10: 2.45 | K10: 2.284615385 | L10: -0.8786103594 | M10: 0 | N10: 0 | O10: 0 | P10: 0 | Q10: 0 | R10: 0 | S10: 0 | T10: 0 | U10: 0 | V10: 0 | W10: 1.406005025 | Y10: 2.284386934 | Z10: 0 | AA10: 0 | AB10: 0 | AC10: 0 | AD10: 0 | AE10: 0 | AF10: 0 | AG10: 0 | AH10: 0 | AI10: 0 | AJ10: 2.284386934 | AK10: 3.70039196 | AN10: 12.675 | AO10: 0.007391157083 | AQ10: 6 | AR10: 2.925 | AS10: 2.284615385 | AT10: 0 | AU10: 0 | AV10: 0 | AW10: 0 | AX10: 0 | AY10: 0 | AZ10: 0 | BA10: 0 | BB10: 0 | BC10: 0 | BD10: 0 | BE10: 2.284615385 | BG10: 2.284386934 | BH10: 0 | BI10: 0 | BJ10: 0 | BK10: 0 | BL10: 0 | BM10: 0 | BN10: 0 | BO10: 0 | BP10: 0 | BQ10: 0 | BR10: 2.284386934 | BS10: 4.579002319 | BV10: 12.675 | BW10: 0.007391157083 | BY10: 6 | BZ10: 2.925 | CA10: 2.284615385 | CB10: 0 | CC10: 0 | CD10: 0 | CE10: 0 | CF10: 0 | CG10: 0 | CH10: 0 | CI10: 0 | CJ10: 0 | CK10: 0 | CL10: 0 | CM10: 2.284615385 | CO10: 2.284386934 | CP10: 0 | CQ10: 0 | CR10: 0 | CS10: 0 | CT10: 0 | CU10: 0 | CV10: 0 | CW10: 0 | CX10: 0 | CY10: 0 | CZ10: 2.284386934 | DA10: 4.579002319
F11: 13.65 | G11: -0.002842468463 | I11: 7 | J11: 3.9 | K11: 2.284615385 | L11: -0.8786103594 | M11: 0 | N11: 0 | O11: 0 | P11: 0 | Q11: 0 | R11: 0 | S11: 0 | T11: 0 | U11: 0 | V11: 0 | W11: 1.406005025 | Y11: 2.284386934 | Z11: 0 | AA11: 0 | AB11: 0 | AC11: 0 | AD11: 0 | AE11: 0 | AF11: 0 | AG11: 0 | AH11: 0 | AI11: 0 | AJ11: 2.284386934 | AK11: 3.70039196 | AN11: 14.625 | AO11: -0.002842468463 | AQ11: 7 | AR11: 3.425 | AS11: 2.284615385 | AT11: -0.8786103594 | AU11: 0 | AV11: 0 | AW11: 0 | AX11: 0 | AY11: 0 | AZ11: 0 | BA11: 0 | BB11: 0 | BC11: 0 | BD11: 0 | BE11: 1.406005025 | BG11: 2.284386934 | BH11: -0.8785225027 | BI11: 0 | BJ11: 0 | BK11: 0 | BL11: 0 | BM11: 0 | BN11: 0 | BO11: 0 | BP11: 0 | BQ11: 0 | BR11: 1.405864432 | BS11: 2.821869457 | BV11: 14.625 | BW11: -0.002842468463 | BY11: 7 | BZ11: 3.425 | CA11: 2.284615385 | CB11: -0.8786103594 | CC11: 0 | CD11: 0 | CE11: 0 | CF11: 0 | CG11: 0 | CH11: 0 | CI11: 0 | CJ11: 0 | CK11: 0 | CL11: 0 | CM11: 1.406005025 | CO11: 2.284386934 | CP11: -0.8785225027 | CQ11: 0 | CR11: 0 | CS11: 0 | CT11: 0 | CU11: 0 | CV11: 0 | CW11: 0 | CX11: 0 | CY11: 0 | CZ11: 1.405864432 | DA11: 2.821869457
A12: 電圧(V) | B12: =VLOOKUP(波形!D5,Data!Q2:R8,2,0) -> 3.3 | F12: 15.6 | G12: 0.001093147781 | I12: 8 | J12: 3.9 | K12: 2.284615385 | L12: -0.8786103594 | M12: 0 | N12: 0 | O12: 0 | P12: 0 | Q12: 0 | R12: 0 | S12: 0 | T12: 0 | U12: 0 | V12: 0 | W12: 1.406005025 | Y12: 2.284386934 | Z12: 0 | AA12: 0 | AB12: 0 | AC12: 0 | AD12: 0 | AE12: 0 | AF12: 0 | AG12: 0 | AH12: 0 | AI12: 0 | AJ12: 2.284386934 | AK12: 3.70039196 | AN12: 16.575 | AO12: 0.001093147781 | AQ12: 8 | AR12: 3.425 | AS12: 2.284615385 | AT12: -0.8786103594 | AU12: 0 | AV12: 0 | AW12: 0 | AX12: 0 | AY12: 0 | AZ12: 0 | BA12: 0 | BB12: 0 | BC12: 0 | BD12: 0 | BE12: 1.406005025 | BG12: 2.284386934 | BH12: -0.8785225027 | BI12: 0 | BJ12: 0 | BK12: 0 | BL12: 0 | BM12: 0 | BN12: 0 | BO12: 0 | BP12: 0 | BQ12: 0 | BR12: 1.405864432 | BS12: 2.821869457 | BV12: 16.575 | BW12: 0.001093147781 | BY12: 8 | BZ12: 3.425 | CA12: 2.284615385 | CB12: -0.8786103594 | CC12: 0 | CD12: 0 | CE12: 0 | CF12: 0 | CG12: 0 | CH12: 0 | CI12: 0 | CJ12: 0 | CK12: 0 | CL12: 0 | CM12: 1.406005025 | CO12: 2.284386934 | CP12: -0.8785225027 | CQ12: 0 | CR12: 0 | CS12: 0 | CT12: 0 | CU12: 0 | CV12: 0 | CW12: 0 | CX12: 0 | CY12: 0 | CZ12: 1.405864432 | DA12: 2.821869457
A13: 中間点 | B13: =VLOOKUP(波形!O6,Data!Z2:AA7,2,0) -> 1 | F13: 17.55 | G13: -0.0004203994121 | I13: 9 | J13: 4.4 | K13: 2.284615385 | L13: -0.8786103594 | M13: 0.3378932703 | N13: 0 | O13: 0 | P13: 0 | Q13: 0 | R13: 0 | S13: 0 | T13: 0 | U13: 0 | V13: 0 | W13: 1.743898295 | Y13: 2.284386934 | Z13: -0.8785225027 | AA13: 0 | AB13: 0 | AC13: 0 | AD13: 0 | AE13: 0 | AF13: 0 | AG13: 0 | AH13: 0 | AI13: 0 | AJ13: 1.405864432 | AK13: 3.159762727 | AN13: 18.525 | AO13: -0.0004203994121 | AQ13: 9 | AR13: 4.875 | AS13: 2.284615385 | AT13: -0.8786103594 | AU13: 0 | AV13: 0 | AW13: 0 | AX13: 0 | AY13: 0 | AZ13: 0 | BA13: 0 | BB13: 0 | BC13: 0 | BD13: 0 | BE13: 1.406005025 | BG13: 2.284386934 | BH13: -0.8785225027 | BI13: 0 | BJ13: 0 | BK13: 0 | BL13: 0 | BM13: 0 | BN13: 0 | BO13: 0 | BP13: 0 | BQ13: 0 | BR13: 1.405864432 | BS13: 2.821869457 | BV13: 18.525 | BW13: -0.0004203994121 | BY13: 9 | BZ13: 4.875 | CA13: 2.284615385 | CB13: -0.8786103594 | CC13: 0 | CD13: 0 | CE13: 0 | CF13: 0 | CG13: 0 | CH13: 0 | CI13: 0 | CJ13: 0 | CK13: 0 | CL13: 0 | CM13: 1.406005025 | CO13: 2.284386934 | CP13: -0.8785225027 | CQ13: 0 | CR13: 0 | CS13: 0 | CT13: 0 | CU13: 0 | CV13: 0 | CW13: 0 | CX13: 0 | CY13: 0 | CZ13: 1.405864432 | DA13: 2.821869457
A14: VT | B14: =VLOOKUP(波形!V3,Data!W2:X7,2,0) -> 0 | F14: 19.5 | G14: 0.0001616759132 | I14: 10 | J14: 4.4 | K14: 2.284615385 | L14: -0.8786103594 | M14: 0.3378932703 | N14: 0 | O14: 0 | P14: 0 | Q14: 0 | R14: 0 | S14: 0 | T14: 0 | U14: 0 | V14: 0 | W14: 1.743898295 | Y14: 2.284386934 | Z14: -0.8785225027 | AA14: 0 | AB14: 0 | AC14: 0 | AD14: 0 | AE14: 0 | AF14: 0 | AG14: 0 | AH14: 0 | AI14: 0 | AJ14: 1.405864432 | AK14: 3.159762727 | AN14: 20.475 | AO14: 0.0001616759132 | AQ14: 10 | AR14: 4.875 | AS14: 2.284615385 | AT14: -0.8786103594 | AU14: 0 | AV14: 0 | AW14: 0 | AX14: 0 | AY14: 0 | AZ14: 0 | BA14: 0 | BB14: 0 | BC14: 0 | BD14: 0 | BE14: 1.406005025 | BG14: 2.284386934 | BH14: -0.8785225027 | BI14: 0 | BJ14: 0 | BK14: 0 | BL14: 0 | BM14: 0 | BN14: 0 | BO14: 0 | BP14: 0 | BQ14: 0 | BR14: 1.405864432 | BS14: 2.821869457 | BV14: 20.475 | BW14: 0.0001616759132 | BY14: 10 | BZ14: 4.875 | CA14: 2.284615385 | CB14: -0.8786103594 | CC14: 0 | CD14: 0 | CE14: 0 | CF14: 0 | CG14: 0 | CH14: 0 | CI14: 0 | CJ14: 0 | CK14: 0 | CL14: 0 | CM14: 1.406005025 | CO14: 2.284386934 | CP14: -0.8785225027 | CQ14: 0 | CR14: 0 | CS14: 0 | CT14: 0 | CU14: 0 | CV14: 0 | CW14: 0 | CX14: 0 | CY14: 0 | CZ14: 1.405864432 | DA14: 2.821869457
A15: Lo分圧 | B15: =IF(B14*B1/(B1+B2)<0.01,0.01,B14*B1/(B1+B2)) -> 0.01 | F15: 21.45 | G15: -6.217682553e-05 | I15: 11 | J15: 5.85 | K15: =IF($J15<K$2,0,IF($J15-K$2>$B$7,K$3,($J15-K$2)/$B$7*K$3)) -> 2.284615385 | L15: -0.8786103594 | M15: 0.3378932703 | N15: 0 | O15: 0 | P15: 0 | Q15: 0 | R15: 0 | S15: 0 | T15: 0 | U15: 0 | V15: 0 | W15: 1.743898295 | Y15: =IF($J15<Y$2,0,IF($J15-Y$2>$B$7,Y$3,($J15-Y$2)/$B$7*Y$3)) -> 2.284386934 | Z15: -0.8785225027 | AA15: 0 | AB15: 0 | AC15: 0 | AD15: 0 | AE15: 0 | AF15: 0 | AG15: 0 | AH15: 0 | AI15: 0 | AJ15: 1.405864432 | AK15: 3.159762727 | AN15: 22.425 | AO15: -6.217682553e-05 | AQ15: 11 | AR15: 5.375 | AS15: =IF($AR15<AS$2,0,IF($AR15-AS$2>$B$7,AS$3,($AR15-AS$2)/$B$7*AS$3)) -> 2.284615385 | AT15: -0.8786103594 | AU15: 0.3378932703 | AV15: 0 | AW15: 0 | AX15: 0 | AY15: 0 | AZ15: 0 | BA15: 0 | BB15: 0 | BC15: 0 | BD15: 0 | BE15: 1.743898295 | BG15: =IF($AR15<BG$2,0,IF($AR15-BG$2>$B$7,BG$3,($AR15-BG$2)/$B$7*BG$3)) -> 2.284386934 | BH15: -0.8785225027 | BI15: 0.3378594826 | BJ15: 0 | BK15: 0 | BL15: 0 | BM15: 0 | BN15: 0 | BO15: 0 | BP15: 0 | BQ15: 0 | BR15: 1.743723914 | BS15: 3.49762221 | BV15: 22.425 | BW15: -6.217682553e-05 | BY15: 11 | BZ15: 5.375 | CA15: =IF($BZ15<CA$2,0,IF($BZ15-CA$2>$B$7,CA$3,($BZ15-CA$2)/$B$7*CA$3)) -> 2.284615385 | CB15: -0.8786103594 | CC15: 0.3378932703 | CD15: 0 | CE15: 0 | CF15: 0 | CG15: 0 | CH15: 0 | CI15: 0 | CJ15: 0 | CK15: 0 | CL15: 0 | CM15: 1.743898295 | CO15: =IF($BZ15<CO$2,0,IF($BZ15-CO$2>$B$7,CO$3,($BZ15-CO$2)/$B$7*CO$3)) -> 2.284386934 | CP15: -0.8785225027 | CQ15: 0.3378594826 | CR15: 0 | CS15: 0 | CT15: 0 | CU15: 0 | CV15: 0 | CW15: 0 | CX15: 0 | CY15: 0 | CZ15: 1.743723914 | DA15: 3.49762221
A16: Hi分圧 | B16: =(B1*B14+B2*B12)/(B1+B2) -> 3.299926668 | I16: 12 | J16: 5.85 | K16: 2.284615385 | L16: -0.8786103594 | M16: 0.3378932703 | N16: 0 | O16: 0 | P16: 0 | Q16: 0 | R16: 0 | S16: 0 | T16: 0 | U16: 0 | V16: 0 | W16: 1.743898295 | Y16: 2.284386934 | Z16: -0.8785225027 | AA16: 0 | AB16: 0 | AC16: 0 | AD16: 0 | AE16: 0 | AF16: 0 | AG16: 0 | AH16: 0 | AI16: 0 | AJ16: 1.405864432 | AK16: 3.159762727 | AQ16: 12 | AR16: 5.375 | AS16: 2.284615385 | AT16: -0.8786103594 | AU16: 0.3378932703 | AV16: 0 | AW16: 0 | AX16: 0 | AY16: 0 | AZ16: 0 | BA16: 0 | BB16: 0 | BC16: 0 | BD16: 0 | BE16: 1.743898295 | BG16: 2.284386934 | BH16: -0.8785225027 | BI16: 0.3378594826 | BJ16: 0 | BK16: 0 | BL16: 0 | BM16: 0 | BN16: 0 | BO16: 0 | BP16: 0 | BQ16: 0 | BR16: 1.743723914 | BS16: 3.49762221 | BY16: 12 | BZ16: 5.375 | CA16: 2.284615385 | CB16: -0.8786103594 | CC16: 0.3378932703 | CD16: 0 | CE16: 0 | CF16: 0 | CG16: 0 | CH16: 0 | CI16: 0 | CJ16: 0 | CK16: 0 | CL16: 0 | CM16: 1.743898295 | CO16: 2.284386934 | CP16: -0.8785225027 | CQ16: 0.3378594826 | CR16: 0 | CS16: 0 | CT16: 0 | CU16: 0 | CV16: 0 | CW16: 0 | CX16: 0 | CY16: 0 | CZ16: 1.743723914 | DA16: 3.49762221
F17: =F4+$B$7 -> 0.5 | I17: 13 | J17: 6.35 | K17: 2.284615385 | L17: -0.8786103594 | M17: 0.3378932703 | N17: -0.1299459548 | O17: 0 | P17: 0 | Q17: 0 | R17: 0 | S17: 0 | T17: 0 | U17: 0 | V17: 0 | W17: 1.613952341 | Y17: 2.284386934 | Z17: -0.8785225027 | AA17: 0.3378594826 | AB17: 0 | AC17: 0 | AD17: 0 | AE17: 0 | AF17: 0 | AG17: 0 | AH17: 0 | AI17: 0 | AJ17: 1.743723914 | AK17: 3.367676255 | AN17: =AN4+$B$7 -> 1.475 | AQ17: 13 | AR17: 6.825 | AS17: 2.284615385 | AT17: -0.8786103594 | AU17: 0.3378932703 | AV17: 0 | AW17: 0 | AX17: 0 | AY17: 0 | AZ17: 0 | BA17: 0 | BB17: 0 | BC17: 0 | BD17: 0 | BE17: 1.743898295 | BG17: 2.284386934 | BH17: -0.8785225027 | BI17: 0.3378594826 | BJ17: 0 | BK17: 0 | BL17: 0 | BM17: 0 | BN17: 0 | BO17: 0 | BP17: 0 | BQ17: 0 | BR17: 1.743723914 | BS17: 3.49762221 | BV17: =BV4+$B$7 -> 1.475 | BY17: 13 | BZ17: 6.825 | CA17: 2.284615385 | CB17: -0.8786103594 | CC17: 0.3378932703 | CD17: 0 | CE17: 0 | CF17: 0 | CG17: 0 | CH17: 0 | CI17: 0 | CJ17: 0 | CK17: 0 | CL17: 0 | CM17: 1.743898295 | CO17: 2.284386934 | CP17: -0.8785225027 | CQ17: 0.3378594826 | CR17: 0 | CS17: 0 | CT17: 0 | CU17: 0 | CV17: 0 | CW17: 0 | CX17: 0 | CY17: 0 | CZ17: 1.743723914 | DA17: 3.49762221
F18: 2.45 | I18: 14 | J18: 6.35 | K18: 2.284615385 | L18: -0.8786103594 | M18: 0.3378932703 | N18: -0.1299459548 | O18: 0 | P18: 0 | Q18: 0 | R18: 0 | S18: 0 | T18: 0 | U18: 0 | V18: 0 | W18: 1.613952341 | Y18: 2.284386934 | Z18: -0.8785225027 | AA18: 0.3378594826 | AB18: 0 | AC18: 0 | AD18: 0 | AE18: 0 | AF18: 0 | AG18: 0 | AH18: 0 | AI18: 0 | AJ18: 1.743723914 | AK18: 3.367676255 | AN18: 3.425 | AQ18: 14 | AR18: 6.825 | AS18: 2.284615385 | AT18: -0.8786103594 | AU18: 0.3378932703 | AV18: 0 | AW18: 0 | AX18: 0 | AY18: 0 | AZ18: 0 | BA18: 0 | BB18: 0 | BC18: 0 | BD18: 0 | BE18: 1.743898295 | BG18: 2.284386934 | BH18: -0.8785225027 | BI18: 0.3378594826 | BJ18: 0 | BK18: 0 | BL18: 0 | BM18: 0 | BN18: 0 | BO18: 0 | BP18: 0 | BQ18: 0 | BR18: 1.743723914 | BS18: 3.49762221 | BV18: 3.425 | BY18: 14 | BZ18: 6.825 | CA18: 2.284615385 | CB18: -0.8786103594 | CC18: 0.3378932703 | CD18: 0 | CE18: 0 | CF18: 0 | CG18: 0 | CH18: 0 | CI18: 0 | CJ18: 0 | CK18: 0 | CL18: 0 | CM18: 1.743898295 | CO18: 2.284386934 | CP18: -0.8785225027 | CQ18: 0.3378594826 | CR18: 0 | CS18: 0 | CT18: 0 | CU18: 0 | CV18: 0 | CW18: 0 | CX18: 0 | CY18: 0 | CZ18: 1.743723914 | DA18: 3.49762221
F19: 4.4 | I19: 15 | J19: 7.8 | K19: 2.284615385 | L19: -0.8786103594 | M19: 0.3378932703 | N19: -0.1299459548 | O19: 0 | P19: 0 | Q19: 0 | R19: 0 | S19: 0 | T19: 0 | U19: 0 | V19: 0 | W19: 1.613952341 | Y19: 2.284386934 | Z19: -0.8785225027 | AA19: 0.3378594826 | AB19: 0 | AC19: 0 | AD19: 0 | AE19: 0 | AF19: 0 | AG19: 0 | AH19: 0 | AI19: 0 | AJ19: 1.743723914 | AK19: 3.367676255 | AN19: 5.375 | AQ19: 15 | AR19: 7.325 | AS19: 2.284615385 | AT19: -0.8786103594 | AU19: 0.3378932703 | AV19: -0.1299459548 | AW19: 0 | AX19: 0 | AY19: 0 | AZ19: 0 | BA19: 0 | BB19: 0 | BC19: 0 | BD19: 0 | BE19: 1.613952341 | BG19: 2.284386934 | BH19: -0.8785225027 | BI19: 0.3378594826 | BJ19: -0.1299329609 | BK19: 0 | BL19: 0 | BM19: 0 | BN19: 0 | BO19: 0 | BP19: 0 | BQ19: 0 | BR19: 1.613790953 | BS19: 3.237743294 | BV19: 5.375 | BY19: 15 | BZ19: 7.325 | CA19: 2.284615385 | CB19: -0.8786103594 | CC19: 0.3378932703 | CD19: -0.1299459548 | CE19: 0 | CF19: 0 | CG19: 0 | CH19: 0 | CI19: 0 | CJ19: 0 | CK19: 0 | CL19: 0 | CM19: 1.613952341 | CO19: 2.284386934 | CP19: -0.8785225027 | CQ19: 0.3378594826 | CR19: -0.1299329609 | CS19: 0 | CT19: 0 | CU19: 0 | CV19: 0 | CW19: 0 | CX19: 0 | CY19: 0 | CZ19: 1.613790953 | DA19: 3.237743294
F20: 6.35 | I20: 16 | J20: 7.8 | K20: 2.284615385 | L20: -0.8786103594 | M20: 0.3378932703 | N20: -0.1299459548 | O20: 0 | P20: 0 | Q20: 0 | R20: 0 | S20: 0 | T20: 0 | U20: 0 | V20: 0 | W20: 1.613952341 | Y20: 2.284386934 | Z20: -0.8785225027 | AA20: 0.3378594826 | AB20: 0 | AC20: 0 | AD20: 0 | AE20: 0 | AF20: 0 | AG20: 0 | AH20: 0 | AI20: 0 | AJ20: 1.743723914 | AK20: 3.367676255 | AN20: 7.325 | AQ20: 16 | AR20: 7.325 | AS20: 2.284615385 | AT20: -0.8786103594 | AU20: 0.3378932703 | AV20: -0.1299459548 | AW20: 0 | AX20: 0 | AY20: 0 | AZ20: 0 | BA20: 0 | BB20: 0 | BC20: 0 | BD20: 0 | BE20: 1.613952341 | BG20: 2.284386934 | BH20: -0.8785225027 | BI20: 0.3378594826 | BJ20: -0.1299329609 | BK20: 0 | BL20: 0 | BM20: 0 | BN20: 0 | BO20: 0 | BP20: 0 | BQ20: 0 | BR20: 1.613790953 | BS20: 3.237743294 | BV20: 7.325 | BY20: 16 | BZ20: 7.325 | CA20: 2.284615385 | CB20: -0.8786103594 | CC20: 0.3378932703 | CD20: -0.1299459548 | CE20: 0 | CF20: 0 | CG20: 0 | CH20: 0 | CI20: 0 | CJ20: 0 | CK20: 0 | CL20: 0 | CM20: 1.613952341 | CO20: 2.284386934 | CP20: -0.8785225027 | CQ20: 0.3378594826 | CR20: -0.1299329609 | CS20: 0 | CT20: 0 | CU20: 0 | CV20: 0 | CW20: 0 | CX20: 0 | CY20: 0 | CZ20: 1.613790953 | DA20: 3.237743294
F21: 8.3 | I21: 17 | J21: 8.3 | K21: 2.284615385 | L21: -0.8786103594 | M21: 0.3378932703 | N21: -0.1299459548 | O21: 0.04997421573 | P21: 0 | Q21: 0 | R21: 0 | S21: 0 | T21: 0 | U21: 0 | V21: 0 | W21: 1.663926556 | Y21: 2.284386934 | Z21: -0.8785225027 | AA21: 0.3378594826 | AB21: -0.1299329609 | AC21: 0 | AD21: 0 | AE21: 0 | AF21: 0 | AG21: 0 | AH21: 0 | AI21: 0 | AJ21: 1.613790953 | AK21: 3.28771751 | AN21: 9.275 | AQ21: 17 | AR21: 8.775 | AS21: 2.284615385 | AT21: -0.8786103594 | AU21: 0.3378932703 | AV21: -0.1299459548 | AW21: 0 | AX21: 0 | AY21: 0 | AZ21: 0 | BA21: 0 | BB21: 0 | BC21: 0 | BD21: 0 | BE21: 1.613952341 | BG21: 2.284386934 | BH21: -0.8785225027 | BI21: 0.3378594826 | BJ21: -0.1299329609 | BK21: 0 | BL21: 0 | BM21: 0 | BN21: 0 | BO21: 0 | BP21: 0 | BQ21: 0 | BR21: 1.613790953 | BS21: 3.237743294 | BV21: 9.275 | BY21: 17 | BZ21: 8.775 | CA21: 2.284615385 | CB21: -0.8786103594 | CC21: 0.3378932703 | CD21: -0.1299459548 | CE21: 0 | CF21: 0 | CG21: 0 | CH21: 0 | CI21: 0 | CJ21: 0 | CK21: 0 | CL21: 0 | CM21: 1.613952341 | CO21: 2.284386934 | CP21: -0.8785225027 | CQ21: 0.3378594826 | CR21: -0.1299329609 | CS21: 0 | CT21: 0 | CU21: 0 | CV21: 0 | CW21: 0 | CX21: 0 | CY21: 0 | CZ21: 1.613790953 | DA21: 3.237743294
F22: 10.25 | I22: 18 | J22: 8.3 | K22: 2.284615385 | L22: -0.8786103594 | M22: 0.3378932703 | N22: -0.1299459548 | O22: 0.04997421573 | P22: 0 | Q22: 0 | R22: 0 | S22: 0 | T22: 0 | U22: 0 | V22: 0 | W22: 1.663926556 | Y22: 2.284386934 | Z22: -0.8785225027 | AA22: 0.3378594826 | AB22: -0.1299329609 | AC22: 0 | AD22: 0 | AE22: 0 | AF22: 0 | AG22: 0 | AH22: 0 | AI22: 0 | AJ22: 1.613790953 | AK22: 3.28771751 | AN22: 11.225 | AQ22: 18 | AR22: 8.775 | AS22: 2.284615385 | AT22: -0.8786103594 | AU22: 0.3378932703 | AV22: -0.1299459548 | AW22: 0 | AX22: 0 | AY22: 0 | AZ22: 0 | BA22: 0 | BB22: 0 | BC22: 0 | BD22: 0 | BE22: 1.613952341 | BG22: 2.284386934 | BH22: -0.8785225027 | BI22: 0.3378594826 | BJ22: -0.1299329609 | BK22: 0 | BL22: 0 | BM22: 0 | BN22: 0 | BO22: 0 | BP22: 0 | BQ22: 0 | BR22: 1.613790953 | BS22: 3.237743294 | BV22: 11.225 | BY22: 18 | BZ22: 8.775 | CA22: 2.284615385 | CB22: -0.8786103594 | CC22: 0.3378932703 | CD22: -0.1299459548 | CE22: 0 | CF22: 0 | CG22: 0 | CH22: 0 | CI22: 0 | CJ22: 0 | CK22: 0 | CL22: 0 | CM22: 1.613952341 | CO22: 2.284386934 | CP22: -0.8785225027 | CQ22: 0.3378594826 | CR22: -0.1299329609 | CS22: 0 | CT22: 0 | CU22: 0 | CV22: 0 | CW22: 0 | CX22: 0 | CY22: 0 | CZ22: 1.613790953 | DA22: 3.237743294
F23: 12.2 | I23: 19 | J23: 9.75 | K23: 2.284615385 | L23: -0.8786103594 | M23: 0.3378932703 | N23: -0.1299459548 | O23: 0.04997421573 | P23: 0 | Q23: 0 | R23: 0 | S23: 0 | T23: 0 | U23: 0 | V23: 0 | W23: 1.663926556 | Y23: 2.284386934 | Z23: -0.8785225027 | AA23: 0.3378594826 | AB23: -0.1299329609 | AC23: 0 | AD23: 0 | AE23: 0 | AF23: 0 | AG23: 0 | AH23: 0 | AI23: 0 | AJ23: 1.613790953 | AK23: 3.28771751 | AN23: 13.175 | AQ23: 19 | AR23: 9.275 | AS23: 2.284615385 | AT23: -0.8786103594 | AU23: 0.3378932703 | AV23: -0.1299459548 | AW23: 0.04997421573 | AX23: 0 | AY23: 0 | AZ23: 0 | BA23: 0 | BB23: 0 | BC23: 0 | BD23: 0 | BE23: 1.663926556 | BG23: 2.284386934 | BH23: -0.8785225027 | BI23: 0.3378594826 | BJ23: -0.1299329609 | BK23: 0.04996921856 | BL23: 0 | BM23: 0 | BN23: 0 | BO23: 0 | BP23: 0 | BQ23: 0 | BR23: 1.663760172 | BS23: 3.337686728 | BV23: 13.175 | BY23: 19 | BZ23: 9.275 | CA23: 2.284615385 | CB23: -0.8786103594 | CC23: 0.3378932703 | CD23: -0.1299459548 | CE23: 0.04997421573 | CF23: 0 | CG23: 0 | CH23: 0 | CI23: 0 | CJ23: 0 | CK23: 0 | CL23: 0 | CM23: 1.663926556 | CO23: 2.284386934 | CP23: -0.8785225027 | CQ23: 0.3378594826 | CR23: -0.1299329609 | CS23: 0.04996921856 | CT23: 0 | CU23: 0 | CV23: 0 | CW23: 0 | CX23: 0 | CY23: 0 | CZ23: 1.663760172 | DA23: 3.337686728
F24: 14.15 | I24: 20 | J24: 9.75 | K24: 2.284615385 | L24: -0.8786103594 | M24: 0.3378932703 | N24: -0.1299459548 | O24: 0.04997421573 | P24: 0 | Q24: 0 | R24: 0 | S24: 0 | T24: 0 | U24: 0 | V24: 0 | W24: 1.663926556 | Y24: 2.284386934 | Z24: -0.8785225027 | AA24: 0.3378594826 | AB24: -0.1299329609 | AC24: 0 | AD24: 0 | AE24: 0 | AF24: 0 | AG24: 0 | AH24: 0 | AI24: 0 | AJ24: 1.613790953 | AK24: 3.28771751 | AN24: 15.125 | AQ24: 20 | AR24: 9.275 | AS24: 2.284615385 | AT24: -0.8786103594 | AU24: 0.3378932703 | AV24: -0.1299459548 | AW24: 0.04997421573 | AX24: 0 | AY24: 0 | AZ24: 0 | BA24: 0 | BB24: 0 | BC24: 0 | BD24: 0 | BE24: 1.663926556 | BG24: 2.284386934 | BH24: -0.8785225027 | BI24: 0.3378594826 | BJ24: -0.1299329609 | BK24: 0.04996921856 | BL24: 0 | BM24: 0 | BN24: 0 | BO24: 0 | BP24: 0 | BQ24: 0 | BR24: 1.663760172 | BS24: 3.337686728 | BV24: 15.125 | BY24: 20 | BZ24: 9.275 | CA24: 2.284615385 | CB24: -0.8786103594 | CC24: 0.3378932703 | CD24: -0.1299459548 | CE24: 0.04997421573 | CF24: 0 | CG24: 0 | CH24: 0 | CI24: 0 | CJ24: 0 | CK24: 0 | CL24: 0 | CM24: 1.663926556 | CO24: 2.284386934 | CP24: -0.8785225027 | CQ24: 0.3378594826 | CR24: -0.1299329609 | CS24: 0.04996921856 | CT24: 0 | CU24: 0 | CV24: 0 | CW24: 0 | CX24: 0 | CY24: 0 | CZ24: 1.663760172 | DA24: 3.337686728
F25: 16.1 | I25: 21 | J25: 10.25 | K25: =IF($J25<K$2,0,IF($J25-K$2>$B$7,K$3,($J25-K$2)/$B$7*K$3)) -> 2.284615385 | L25: -0.8786103594 | M25: 0.3378932703 | N25: -0.1299459548 | O25: 0.04997421573 | P25: -0.01921893021 | Q25: 0 | R25: 0 | S25: 0 | T25: 0 | U25: 0 | V25: 0 | W25: 1.644707626 | Y25: =IF($J25<Y$2,0,IF($J25-Y$2>$B$7,Y$3,($J25-Y$2)/$B$7*Y$3)) -> 2.284386934 | Z25: -0.8785225027 | AA25: 0.3378594826 | AB25: -0.1299329609 | AC25: 0.04996921856 | AD25: 0 | AE25: 0 | AF25: 0 | AG25: 0 | AH25: 0 | AI25: 0 | AJ25: 1.663760172 | AK25: 3.318467798 | AN25: 17.075 | AQ25: 21 | AR25: 10.725 | AS25: =IF($AR25<AS$2,0,IF($AR25-AS$2>$B$7,AS$3,($AR25-AS$2)/$B$7*AS$3)) -> 2.284615385 | AT25: -0.8786103594 | AU25: 0.3378932703 | AV25: -0.1299459548 | AW25: 0.04997421573 | AX25: 0 | AY25: 0 | AZ25: 0 | BA25: 0 | BB25: 0 | BC25: 0 | BD25: 0 | BE25: 1.663926556 | BG25: =IF($AR25<BG$2,0,IF($AR25-BG$2>$B$7,BG$3,($AR25-BG$2)/$B$7*BG$3)) -> 2.284386934 | BH25: -0.8785225027 | BI25: 0.3378594826 | BJ25: -0.1299329609 | BK25: 0.04996921856 | BL25: 0 | BM25: 0 | BN25: 0 | BO25: 0 | BP25: 0 | BQ25: 0 | BR25: 1.663760172 | BS25: 3.337686728 | BV25: 17.075 | BY25: 21 | BZ25: 10.725 | CA25: =IF($BZ25<CA$2,0,IF($BZ25-CA$2>$B$7,CA$3,($BZ25-CA$2)/$B$7*CA$3)) -> 2.284615385 | CB25: -0.8786103594 | CC25: 0.3378932703 | CD25: -0.1299459548 | CE25: 0.04997421573 | CF25: 0 | CG25: 0 | CH25: 0 | CI25: 0 | CJ25: 0 | CK25: 0 | CL25: 0 | CM25: 1.663926556 | CO25: =IF($BZ25<CO$2,0,IF($BZ25-CO$2>$B$7,CO$3,($BZ25-CO$2)/$B$7*CO$3)) -> 2.284386934 | CP25: -0.8785225027 | CQ25: 0.3378594826 | CR25: -0.1299329609 | CS25: 0.04996921856 | CT25: 0 | CU25: 0 | CV25: 0 | CW25: 0 | CX25: 0 | CY25: 0 | CZ25: 1.663760172 | DA25: 3.337686728
F26: 18.05 | I26: 22 | J26: 10.25 | K26: 2.284615385 | L26: -0.8786103594 | M26: 0.3378932703 | N26: -0.1299459548 | O26: 0.04997421573 | P26: -0.01921893021 | Q26: 0 | R26: 0 | S26: 0 | T26: 0 | U26: 0 | V26: 0 | W26: 1.644707626 | Y26: 2.284386934 | Z26: -0.8785225027 | AA26: 0.3378594826 | AB26: -0.1299329609 | AC26: 0.04996921856 | AD26: 0 | AE26: 0 | AF26: 0 | AG26: 0 | AH26: 0 | AI26: 0 | AJ26: 1.663760172 | AK26: 3.318467798 | AN26: 19.025 | AQ26: 22 | AR26: 10.725 | AS26: 2.284615385 | AT26: -0.8786103594 | AU26: 0.3378932703 | AV26: -0.1299459548 | AW26: 0.04997421573 | AX26: 0 | AY26: 0 | AZ26: 0 | BA26: 0 | BB26: 0 | BC26: 0 | BD26: 0 | BE26: 1.663926556 | BG26: 2.284386934 | BH26: -0.8785225027 | BI26: 0.3378594826 | BJ26: -0.1299329609 | BK26: 0.04996921856 | BL26: 0 | BM26: 0 | BN26: 0 | BO26: 0 | BP26: 0 | BQ26: 0 | BR26: 1.663760172 | BS26: 3.337686728 | BV26: 19.025 | BY26: 22 | BZ26: 10.725 | CA26: 2.284615385 | CB26: -0.8786103594 | CC26: 0.3378932703 | CD26: -0.1299459548 | CE26: 0.04997421573 | CF26: 0 | CG26: 0 | CH26: 0 | CI26: 0 | CJ26: 0 | CK26: 0 | CL26: 0 | CM26: 1.663926556 | CO26: 2.284386934 | CP26: -0.8785225027 | CQ26: 0.3378594826 | CR26: -0.1299329609 | CS26: 0.04996921856 | CT26: 0 | CU26: 0 | CV26: 0 | CW26: 0 | CX26: 0 | CY26: 0 | CZ26: 1.663760172 | DA26: 3.337686728
F27: 20 | I27: 23 | J27: 11.7 | K27: 2.284615385 | L27: -0.8786103594 | M27: 0.3378932703 | N27: -0.1299459548 | O27: 0.04997421573 | P27: -0.01921893021 | Q27: 0 | R27: 0 | S27: 0 | T27: 0 | U27: 0 | V27: 0 | W27: 1.644707626 | Y27: 2.284386934 | Z27: -0.8785225027 | AA27: 0.3378594826 | AB27: -0.1299329609 | AC27: 0.04996921856 | AD27: 0 | AE27: 0 | AF27: 0 | AG27: 0 | AH27: 0 | AI27: 0 | AJ27: 1.663760172 | AK27: 3.318467798 | AN27: 20.975 | AQ27: 23 | AR27: 11.225 | AS27: 2.284615385 | AT27: -0.8786103594 | AU27: 0.3378932703 | AV27: -0.1299459548 | AW27: 0.04997421573 | AX27: -0.01921893021 | AY27: 0 | AZ27: 0 | BA27: 0 | BB27: 0 | BC27: 0 | BD27: 0 | BE27: 1.644707626 | BG27: 2.284386934 | BH27: -0.8785225027 | BI27: 0.3378594826 | BJ27: -0.1299329609 | BK27: 0.04996921856 | BL27: -0.01921700842 | BM27: 0 | BN27: 0 | BO27: 0 | BP27: 0 | BQ27: 0 | BR27: 1.644543164 | BS27: 3.29925079 | BV27: 20.975 | BY27: 23 | BZ27: 11.225 | CA27: 2.284615385 | CB27: -0.8786103594 | CC27: 0.3378932703 | CD27: -0.1299459548 | CE27: 0.04997421573 | CF27: -0.01921893021 | CG27: 0 | CH27: 0 | CI27: 0 | CJ27: 0 | CK27: 0 | CL27: 0 | CM27: 1.644707626 | CO27: 2.284386934 | CP27: -0.8785225027 | CQ27: 0.3378594826 | CR27: -0.1299329609 | CS27: 0.04996921856 | CT27: -0.01921700842 | CU27: 0 | CV27: 0 | CW27: 0 | CX27: 0 | CY27: 0 | CZ27: 1.644543164 | DA27: 3.29925079
F28: 21.95 | I28: 24 | J28: 11.7 | K28: 2.284615385 | L28: -0.8786103594 | M28: 0.3378932703 | N28: -0.1299459548 | O28: 0.04997421573 | P28: -0.01921893021 | Q28: 0 | R28: 0 | S28: 0 | T28: 0 | U28: 0 | V28: 0 | W28: 1.644707626 | Y28: 2.284386934 | Z28: -0.8785225027 | AA28: 0.3378594826 | AB28: -0.1299329609 | AC28: 0.04996921856 | AD28: 0 | AE28: 0 | AF28: 0 | AG28: 0 | AH28: 0 | AI28: 0 | AJ28: 1.663760172 | AK28: 3.318467798 | AN28: 22.925 | AQ28: 24 | AR28: 11.225 | AS28: 2.284615385 | AT28: -0.8786103594 | AU28: 0.3378932703 | AV28: -0.1299459548 | AW28: 0.04997421573 | AX28: -0.01921893021 | AY28: 0 | AZ28: 0 | BA28: 0 | BB28: 0 | BC28: 0 | BD28: 0 | BE28: 1.644707626 | BG28: 2.284386934 | BH28: -0.8785225027 | BI28: 0.3378594826 | BJ28: -0.1299329609 | BK28: 0.04996921856 | BL28: -0.01921700842 | BM28: 0 | BN28: 0 | BO28: 0 | BP28: 0 | BQ28: 0 | BR28: 1.644543164 | BS28: 3.29925079 | BV28: 22.925 | BY28: 24 | BZ28: 11.225 | CA28: 2.284615385 | CB28: -0.8786103594 | CC28: 0.3378932703 | CD28: -0.1299459548 | CE28: 0.04997421573 | CF28: -0.01921893021 | CG28: 0 | CH28: 0 | CI28: 0 | CJ28: 0 | CK28: 0 | CL28: 0 | CM28: 1.644707626 | CO28: 2.284386934 | CP28: -0.8785225027 | CQ28: 0.3378594826 | CR28: -0.1299329609 | CS28: 0.04996921856 | CT28: -0.01921700842 | CU28: 0 | CV28: 0 | CW28: 0 | CX28: 0 | CY28: 0 | CZ28: 1.644543164 | DA28: 3.29925079
E29: vL | F29: =F5-F$1 -> 1.95 | G29: =$B$10*G4 -> 2.284386934 | I29: 25 | J29: 12.2 | K29: 2.284615385 | L29: -0.8786103594 | M29: 0.3378932703 | N29: -0.1299459548 | O29: 0.04997421573 | P29: -0.01921893021 | Q29: 0.007391157083 | R29: 0 | S29: 0 | T29: 0 | U29: 0 | V29: 0 | W29: 1.652098783 | Y29: 2.284386934 | Z29: -0.8785225027 | AA29: 0.3378594826 | AB29: -0.1299329609 | AC29: 0.04996921856 | AD29: -0.01921700842 | AE29: 0 | AF29: 0 | AG29: 0 | AH29: 0 | AI29: 0 | AJ29: 1.644543164 | AK29: 3.306641947 | AM29: vL | AN29: =$C$4-AN$1 -> 0.975 | AO29: =$B$10*AO4 -> 2.284386934 | AQ29: 25 | AR29: 12.675 | AS29: 2.284615385 | AT29: -0.8786103594 | AU29: 0.3378932703 | AV29: -0.1299459548 | AW29: 0.04997421573 | AX29: -0.01921893021 | AY29: 0 | AZ29: 0 | BA29: 0 | BB29: 0 | BC29: 0 | BD29: 0 | BE29: 1.644707626 | BG29: 2.284386934 | BH29: -0.8785225027 | BI29: 0.3378594826 | BJ29: -0.1299329609 | BK29: 0.04996921856 | BL29: -0.01921700842 | BM29: 0 | BN29: 0 | BO29: 0 | BP29: 0 | BQ29: 0 | BR29: 1.644543164 | BS29: 3.29925079 | BU29: vL | BV29: =$C$4-BV$1 -> 0.975 | BW29: =$B$10*BW4 -> 2.284386934 | BY29: 25 | BZ29: 12.675 | CA29: 2.284615385 | CB29: -0.8786103594 | CC29: 0.3378932703 | CD29: -0.1299459548 | CE29: 0.04997421573 | CF29: -0.01921893021 | CG29: 0 | CH29: 0 | CI29: 0 | CJ29: 0 | CK29: 0 | CL29: 0 | CM29: 1.644707626 | CO29: 2.284386934 | CP29: -0.8785225027 | CQ29: 0.3378594826 | CR29: -0.1299329609 | CS29: 0.04996921856 | CT29: -0.01921700842 | CU29: 0 | CV29: 0 | CW29: 0 | CX29: 0 | CY29: 0 | CZ29: 1.644543164 | DA29: 3.29925079
F30: =F6-F$1 -> 3.9 | G30: -0.8785225027 | I30: 26 | J30: 12.2 | K30: 2.284615385 | L30: -0.8786103594 | M30: 0.3378932703 | N30: -0.1299459548 | O30: 0.04997421573 | P30: -0.01921893021 | Q30: 0.007391157083 | R30: 0 | S30: 0 | T30: 0 | U30: 0 | V30: 0 | W30: 1.652098783 | Y30: 2.284386934 | Z30: -0.8785225027 | AA30: 0.3378594826 | AB30: -0.1299329609 | AC30: 0.04996921856 | AD30: -0.01921700842 | AE30: 0 | AF30: 0 | AG30: 0 | AH30: 0 | AI30: 0 | AJ30: 1.644543164 | AK30: 3.306641947 | AN30: =AN29+$C$4 -> 2.925 | AO30: -0.8785225027 | AQ30: 26 | AR30: 12.675 | AS30: 2.284615385 | AT30: -0.8786103594 | AU30: 0.3378932703 | AV30: -0.1299459548 | AW30: 0.04997421573 | AX30: -0.01921893021 | AY30: 0 | AZ30: 0 | BA30: 0 | BB30: 0 | BC30: 0 | BD30: 0 | BE30: 1.644707626 | BG30: 2.284386934 | BH30: -0.8785225027 | BI30: 0.3378594826 | BJ30: -0.1299329609 | BK30: 0.04996921856 | BL30: -0.01921700842 | BM30: 0 | BN30: 0 | BO30: 0 | BP30: 0 | BQ30: 0 | BR30: 1.644543164 | BS30: 3.29925079 | BV30: =BV29+$C$4 -> 2.925 | BW30: -0.8785225027 | BY30: 26 | BZ30: 12.675 | CA30: 2.284615385 | CB30: -0.8786103594 | CC30: 0.3378932703 | CD30: -0.1299459548 | CE30: 0.04997421573 | CF30: -0.01921893021 | CG30: 0 | CH30: 0 | CI30: 0 | CJ30: 0 | CK30: 0 | CL30: 0 | CM30: 1.644707626 | CO30: 2.284386934 | CP30: -0.8785225027 | CQ30: 0.3378594826 | CR30: -0.1299329609 | CS30: 0.04996921856 | CT30: -0.01921700842 | CU30: 0 | CV30: 0 | CW30: 0 | CX30: 0 | CY30: 0 | CZ30: 1.644543164 | DA30: 3.29925079
F31: 5.85 | G31: 0.3378594826 | I31: 27 | J31: 13.65 | K31: 2.284615385 | L31: -0.8786103594 | M31: 0.3378932703 | N31: -0.1299459548 | O31: 0.04997421573 | P31: -0.01921893021 | Q31: 0.007391157083 | R31: 0 | S31: 0 | T31: 0 | U31: 0 | V31: 0 | W31: 1.652098783 | Y31: 2.284386934 | Z31: -0.8785225027 | AA31: 0.3378594826 | AB31: -0.1299329609 | AC31: 0.04996921856 | AD31: -0.01921700842 | AE31: 0 | AF31: 0 | AG31: 0 | AH31: 0 | AI31: 0 | AJ31: 1.644543164 | AK31: 3.306641947 | AN31: =AN30+$C$4 -> 4.875 | AO31: 0.3378594826 | AQ31: 27 | AR31: 13.175 | AS31: 2.284615385 | AT31: -0.8786103594 | AU31: 0.3378932703 | AV31: -0.1299459548 | AW31: 0.04997421573 | AX31: -0.01921893021 | AY31: 0.007391157083 | AZ31: 0 | BA31: 0 | BB31: 0 | BC31: 0 | BD31: 0 | BE31: 1.652098783 | BG31: 2.284386934 | BH31: -0.8785225027 | BI31: 0.3378594826 | BJ31: -0.1299329609 | BK31: 0.04996921856 | BL31: -0.01921700842 | BM31: 0.007390418004 | BN31: 0 | BO31: 0 | BP31: 0 | BQ31: 0 | BR31: 1.651933582 | BS31: 3.314032365 | BV31: =BV30+$C$4 -> 4.875 | BW31: 0.3378594826 | BY31: 27 | BZ31: 13.175 | CA31: 2.284615385 | CB31: -0.8786103594 | CC31: 0.3378932703 | CD31: -0.1299459548 | CE31: 0.04997421573 | CF31: -0.01921893021 | CG31: 0.007391157083 | CH31: 0 | CI31: 0 | CJ31: 0 | CK31: 0 | CL31: 0 | CM31: 1.652098783 | CO31: 2.284386934 | CP31: -0.8785225027 | CQ31: 0.3378594826 | CR31: -0.1299329609 | CS31: 0.04996921856 | CT31: -0.01921700842 | CU31: 0.007390418004 | CV31: 0 | CW31: 0 | CX31: 0 | CY31: 0 | CZ31: 1.651933582 | DA31: 3.314032365
F32: 7.8 | G32: -0.1299329609 | I32: 28 | J32: 13.65 | K32: 2.284615385 | L32: -0.8786103594 | M32: 0.3378932703 | N32: -0.1299459548 | O32: 0.04997421573 | P32: -0.01921893021 | Q32: 0.007391157083 | R32: 0 | S32: 0 | T32: 0 | U32: 0 | V32: 0 | W32: 1.652098783 | Y32: 2.284386934 | Z32: -0.8785225027 | AA32: 0.3378594826 | AB32: -0.1299329609 | AC32: 0.04996921856 | AD32: -0.01921700842 | AE32: 0 | AF32: 0 | AG32: 0 | AH32: 0 | AI32: 0 | AJ32: 1.644543164 | AK32: 3.306641947 | AN32: 6.825 | AO32: -0.1299329609 | AQ32: 28 | AR32: 13.175 | AS32: 2.284615385 | AT32: -0.8786103594 | AU32: 0.3378932703 | AV32: -0.1299459548 | AW32: 0.04997421573 | AX32: -0.01921893021 | AY32: 0.007391157083 | AZ32: 0 | BA32: 0 | BB32: 0 | BC32: 0 | BD32: 0 | BE32: 1.652098783 | BG32: 2.284386934 | BH32: -0.8785225027 | BI32: 0.3378594826 | BJ32: -0.1299329609 | BK32: 0.04996921856 | BL32: -0.01921700842 | BM32: 0.007390418004 | BN32: 0 | BO32: 0 | BP32: 0 | BQ32: 0 | BR32: 1.651933582 | BS32: 3.314032365 | BV32: 6.825 | BW32: -0.1299329609 | BY32: 28 | BZ32: 13.175 | CA32: 2.284615385 | CB32: -0.8786103594 | CC32: 0.3378932703 | CD32: -0.1299459548 | CE32: 0.04997421573 | CF32: -0.01921893021 | CG32: 0.007391157083 | CH32: 0 | CI32: 0 | CJ32: 0 | CK32: 0 | CL32: 0 | CM32: 1.652098783 | CO32: 2.284386934 | CP32: -0.8785225027 | CQ32: 0.3378594826 | CR32: -0.1299329609 | CS32: 0.04996921856 | CT32: -0.01921700842 | CU32: 0.007390418004 | CV32: 0 | CW32: 0 | CX32: 0 | CY32: 0 | CZ32: 1.651933582 | DA32: 3.314032365
F33: 9.75 | G33: 0.04996921856 | I33: 29 | J33: 14.15 | K33: 2.284615385 | L33: -0.8786103594 | M33: 0.3378932703 | N33: -0.1299459548 | O33: 0.04997421573 | P33: -0.01921893021 | Q33: 0.007391157083 | R33: -0.002842468463 | S33: 0 | T33: 0 | U33: 0 | V33: 0 | W33: 1.649256315 | Y33: 2.284386934 | Z33: -0.8785225027 | AA33: 0.3378594826 | AB33: -0.1299329609 | AC33: 0.04996921856 | AD33: -0.01921700842 | AE33: 0.007390418004 | AF33: 0 | AG33: 0 | AH33: 0 | AI33: 0 | AJ33: 1.651933582 | AK33: 3.311189896 | AN33: 8.775 | AO33: 0.04996921856 | AQ33: 29 | AR33: 14.625 | AS33: 2.284615385 | AT33: -0.8786103594 | AU33: 0.3378932703 | AV33: -0.1299459548 | AW33: 0.04997421573 | AX33: -0.01921893021 | AY33: 0.007391157083 | AZ33: 0 | BA33: 0 | BB33: 0 | BC33: 0 | BD33: 0 | BE33: 1.652098783 | BG33: 2.284386934 | BH33: -0.8785225027 | BI33: 0.3378594826 | BJ33: -0.1299329609 | BK33: 0.04996921856 | BL33: -0.01921700842 | BM33: 0.007390418004 | BN33: 0 | BO33: 0 | BP33: 0 | BQ33: 0 | BR33: 1.651933582 | BS33: 3.314032365 | BV33: 8.775 | BW33: 0.04996921856 | BY33: 29 | BZ33: 14.625 | CA33: 2.284615385 | CB33: -0.8786103594 | CC33: 0.3378932703 | CD33: -0.1299459548 | CE33: 0.04997421573 | CF33: -0.01921893021 | CG33: 0.007391157083 | CH33: 0 | CI33: 0 | CJ33: 0 | CK33: 0 | CL33: 0 | CM33: 1.652098783 | CO33: 2.284386934 | CP33: -0.8785225027 | CQ33: 0.3378594826 | CR33: -0.1299329609 | CS33: 0.04996921856 | CT33: -0.01921700842 | CU33: 0.007390418004 | CV33: 0 | CW33: 0 | CX33: 0 | CY33: 0 | CZ33: 1.651933582 | DA33: 3.314032365
F34: 11.7 | G34: -0.01921700842 | I34: 30 | J34: 14.15 | K34: 2.284615385 | L34: -0.8786103594 | M34: 0.3378932703 | N34: -0.1299459548 | O34: 0.04997421573 | P34: -0.01921893021 | Q34: 0.007391157083 | R34: -0.002842468463 | S34: 0 | T34: 0 | U34: 0 | V34: 0 | W34: 1.649256315 | Y34: 2.284386934 | Z34: -0.8785225027 | AA34: 0.3378594826 | AB34: -0.1299329609 | AC34: 0.04996921856 | AD34: -0.01921700842 | AE34: 0.007390418004 | AF34: 0 | AG34: 0 | AH34: 0 | AI34: 0 | AJ34: 1.651933582 | AK34: 3.311189896 | AN34: 10.725 | AO34: -0.01921700842 | AQ34: 30 | AR34: 14.625 | AS34: 2.284615385 | AT34: -0.8786103594 | AU34: 0.3378932703 | AV34: -0.1299459548 | AW34: 0.04997421573 | AX34: -0.01921893021 | AY34: 0.007391157083 | AZ34: 0 | BA34: 0 | BB34: 0 | BC34: 0 | BD34: 0 | BE34: 1.652098783 | BG34: 2.284386934 | BH34: -0.8785225027 | BI34: 0.3378594826 | BJ34: -0.1299329609 | BK34: 0.04996921856 | BL34: -0.01921700842 | BM34: 0.007390418004 | BN34: 0 | BO34: 0 | BP34: 0 | BQ34: 0 | BR34: 1.651933582 | BS34: 3.314032365 | BV34: 10.725 | BW34: -0.01921700842 | BY34: 30 | BZ34: 14.625 | CA34: 2.284615385 | CB34: -0.8786103594 | CC34: 0.3378932703 | CD34: -0.1299459548 | CE34: 0.04997421573 | CF34: -0.01921893021 | CG34: 0.007391157083 | CH34: 0 | CI34: 0 | CJ34: 0 | CK34: 0 | CL34: 0 | CM34: 1.652098783 | CO34: 2.284386934 | CP34: -0.8785225027 | CQ34: 0.3378594826 | CR34: -0.1299329609 | CS34: 0.04996921856 | CT34: -0.01921700842 | CU34: 0.007390418004 | CV34: 0 | CW34: 0 | CX34: 0 | CY34: 0 | CZ34: 1.651933582 | DA34: 3.314032365
F35: 13.65 | G35: 0.007390418004 | I35: 31 | J35: 15.6 | K35: =IF($J35<K$2,0,IF($J35-K$2>$B$7,K$3,($J35-K$2)/$B$7*K$3)) -> 2.284615385 | L35: -0.8786103594 | M35: 0.3378932703 | N35: -0.1299459548 | O35: 0.04997421573 | P35: -0.01921893021 | Q35: 0.007391157083 | R35: -0.002842468463 | S35: 0 | T35: 0 | U35: 0 | V35: 0 | W35: 1.649256315 | Y35: =IF($J35<Y$2,0,IF($J35-Y$2>$B$7,Y$3,($J35-Y$2)/$B$7*Y$3)) -> 2.284386934 | Z35: -0.8785225027 | AA35: 0.3378594826 | AB35: -0.1299329609 | AC35: 0.04996921856 | AD35: -0.01921700842 | AE35: 0.007390418004 | AF35: 0 | AG35: 0 | AH35: 0 | AI35: 0 | AJ35: 1.651933582 | AK35: 3.311189896 | AN35: 12.675 | AO35: 0.007390418004 | AQ35: 31 | AR35: 15.125 | AS35: =IF($AR35<AS$2,0,IF($AR35-AS$2>$B$7,AS$3,($AR35-AS$2)/$B$7*AS$3)) -> 2.284615385 | AT35: -0.8786103594 | AU35: 0.3378932703 | AV35: -0.1299459548 | AW35: 0.04997421573 | AX35: -0.01921893021 | AY35: 0.007391157083 | AZ35: -0.002842468463 | BA35: 0 | BB35: 0 | BC35: 0 | BD35: 0 | BE35: 1.649256315 | BG35: =IF($AR35<BG$2,0,IF($AR35-BG$2>$B$7,BG$3,($AR35-BG$2)/$B$7*BG$3)) -> 2.284386934 | BH35: -0.8785225027 | BI35: 0.3378594826 | BJ35: -0.1299329609 | BK35: 0.04996921856 | BL35: -0.01921700842 | BM35: 0.007390418004 | BN35: -0.00284218423 | BO35: 0 | BP35: 0 | BQ35: 0 | BR35: 1.649091397 | BS35: 3.308347712 | BV35: 12.675 | BW35: 0.007390418004 | BY35: 31 | BZ35: 15.125 | CA35: =IF($BZ35<CA$2,0,IF($BZ35-CA$2>$B$7,CA$3,($BZ35-CA$2)/$B$7*CA$3)) -> 2.284615385 | CB35: -0.8786103594 | CC35: 0.3378932703 | CD35: -0.1299459548 | CE35: 0.04997421573 | CF35: -0.01921893021 | CG35: 0.007391157083 | CH35: -0.002842468463 | CI35: 0 | CJ35: 0 | CK35: 0 | CL35: 0 | CM35: 1.649256315 | CO35: =IF($BZ35<CO$2,0,IF($BZ35-CO$2>$B$7,CO$3,($BZ35-CO$2)/$B$7*CO$3)) -> 2.284386934 | CP35: -0.8785225027 | CQ35: 0.3378594826 | CR35: -0.1299329609 | CS35: 0.04996921856 | CT35: -0.01921700842 | CU35: 0.007390418004 | CV35: -0.00284218423 | CW35: 0 | CX35: 0 | CY35: 0 | CZ35: 1.649091397 | DA35: 3.308347712
F36: 15.6 | G36: -0.00284218423 | I36: 32 | J36: 15.6 | K36: 2.284615385 | L36: -0.8786103594 | M36: 0.3378932703 | N36: -0.1299459548 | O36: 0.04997421573 | P36: -0.01921893021 | Q36: 0.007391157083 | R36: -0.002842468463 | S36: 0 | T36: 0 | U36: 0 | V36: 0 | W36: 1.649256315 | Y36: 2.284386934 | Z36: -0.8785225027 | AA36: 0.3378594826 | AB36: -0.1299329609 | AC36: 0.04996921856 | AD36: -0.01921700842 | AE36: 0.007390418004 | AF36: 0 | AG36: 0 | AH36: 0 | AI36: 0 | AJ36: 1.651933582 | AK36: 3.311189896 | AN36: 14.625 | AO36: -0.00284218423 | AQ36: 32 | AR36: 15.125 | AS36: 2.284615385 | AT36: -0.8786103594 | AU36: 0.3378932703 | AV36: -0.1299459548 | AW36: 0.04997421573 | AX36: -0.01921893021 | AY36: 0.007391157083 | AZ36: -0.002842468463 | BA36: 0 | BB36: 0 | BC36: 0 | BD36: 0 | BE36: 1.649256315 | BG36: 2.284386934 | BH36: -0.8785225027 | BI36: 0.3378594826 | BJ36: -0.1299329609 | BK36: 0.04996921856 | BL36: -0.01921700842 | BM36: 0.007390418004 | BN36: -0.00284218423 | BO36: 0 | BP36: 0 | BQ36: 0 | BR36: 1.649091397 | BS36: 3.308347712 | BV36: 14.625 | BW36: -0.00284218423 | BY36: 32 | BZ36: 15.125 | CA36: 2.284615385 | CB36: -0.8786103594 | CC36: 0.3378932703 | CD36: -0.1299459548 | CE36: 0.04997421573 | CF36: -0.01921893021 | CG36: 0.007391157083 | CH36: -0.002842468463 | CI36: 0 | CJ36: 0 | CK36: 0 | CL36: 0 | CM36: 1.649256315 | CO36: 2.284386934 | CP36: -0.8785225027 | CQ36: 0.3378594826 | CR36: -0.1299329609 | CS36: 0.04996921856 | CT36: -0.01921700842 | CU36: 0.007390418004 | CV36: -0.00284218423 | CW36: 0 | CX36: 0 | CY36: 0 | CZ36: 1.649091397 | DA36: 3.308347712
F37: 17.55 | G37: 0.001093038472 | I37: 33 | J37: 16.1 | K37: 2.284615385 | L37: -0.8786103594 | M37: 0.3378932703 | N37: -0.1299459548 | O37: 0.04997421573 | P37: -0.01921893021 | Q37: 0.007391157083 | R37: -0.002842468463 | S37: 0.001093147781 | T37: 0 | U37: 0 | V37: 0 | W37: 1.650349463 | Y37: 2.284386934 | Z37: -0.8785225027 | AA37: 0.3378594826 | AB37: -0.1299329609 | AC37: 0.04996921856 | AD37: -0.01921700842 | AE37: 0.007390418004 | AF37: -0.00284218423 | AG37: 0 | AH37: 0 | AI37: 0 | AJ37: 1.649091397 | AK37: 3.30944086 | AN37: 16.575 | AO37: 0.001093038472 | AQ37: 33 | AR37: 16.575 | AS37: 2.284615385 | AT37: -0.8786103594 | AU37: 0.3378932703 | AV37: -0.1299459548 | AW37: 0.04997421573 | AX37: -0.01921893021 | AY37: 0.007391157083 | AZ37: -0.002842468463 | BA37: 0 | BB37: 0 | BC37: 0 | BD37: 0 | BE37: 1.649256315 | BG37: 2.284386934 | BH37: -0.8785225027 | BI37: 0.3378594826 | BJ37: -0.1299329609 | BK37: 0.04996921856 | BL37: -0.01921700842 | BM37: 0.007390418004 | BN37: -0.00284218423 | BO37: 0 | BP37: 0 | BQ37: 0 | BR37: 1.649091397 | BS37: 3.308347712 | BV37: 16.575 | BW37: 0.001093038472 | BY37: 33 | BZ37: 16.575 | CA37: 2.284615385 | CB37: -0.8786103594 | CC37: 0.3378932703 | CD37: -0.1299459548 | CE37: 0.04997421573 | CF37: -0.01921893021 | CG37: 0.007391157083 | CH37: -0.002842468463 | CI37: 0 | CJ37: 0 | CK37: 0 | CL37: 0 | CM37: 1.649256315 | CO37: 2.284386934 | CP37: -0.8785225027 | CQ37: 0.3378594826 | CR37: -0.1299329609 | CS37: 0.04996921856 | CT37: -0.01921700842 | CU37: 0.007390418004 | CV37: -0.00284218423 | CW37: 0 | CX37: 0 | CY37: 0 | CZ37: 1.649091397 | DA37: 3.308347712
F38: 19.5 | G38: -0.0004203573743 | I38: 34 | J38: 16.1 | K38: 2.284615385 | L38: -0.8786103594 | M38: 0.3378932703 | N38: -0.1299459548 | O38: 0.04997421573 | P38: -0.01921893021 | Q38: 0.007391157083 | R38: -0.002842468463 | S38: 0.001093147781 | T38: 0 | U38: 0 | V38: 0 | W38: 1.650349463 | Y38: 2.284386934 | Z38: -0.8785225027 | AA38: 0.3378594826 | AB38: -0.1299329609 | AC38: 0.04996921856 | AD38: -0.01921700842 | AE38: 0.007390418004 | AF38: -0.00284218423 | AG38: 0 | AH38: 0 | AI38: 0 | AJ38: 1.649091397 | AK38: 3.30944086 | AN38: 18.525 | AO38: -0.0004203573743 | AQ38: 34 | AR38: 16.575 | AS38: 2.284615385 | AT38: -0.8786103594 | AU38: 0.3378932703 | AV38: -0.1299459548 | AW38: 0.04997421573 | AX38: -0.01921893021 | AY38: 0.007391157083 | AZ38: -0.002842468463 | BA38: 0 | BB38: 0 | BC38: 0 | BD38: 0 | BE38: 1.649256315 | BG38: 2.284386934 | BH38: -0.8785225027 | BI38: 0.3378594826 | BJ38: -0.1299329609 | BK38: 0.04996921856 | BL38: -0.01921700842 | BM38: 0.007390418004 | BN38: -0.00284218423 | BO38: 0 | BP38: 0 | BQ38: 0 | BR38: 1.649091397 | BS38: 3.308347712 | BV38: 18.525 | BW38: -0.0004203573743 | BY38: 34 | BZ38: 16.575 | CA38: 2.284615385 | CB38: -0.8786103594 | CC38: 0.3378932703 | CD38: -0.1299459548 | CE38: 0.04997421573 | CF38: -0.01921893021 | CG38: 0.007391157083 | CH38: -0.002842468463 | CI38: 0 | CJ38: 0 | CK38: 0 | CL38: 0 | CM38: 1.649256315 | CO38: 2.284386934 | CP38: -0.8785225027 | CQ38: 0.3378594826 | CR38: -0.1299329609 | CS38: 0.04996921856 | CT38: -0.01921700842 | CU38: 0.007390418004 | CV38: -0.00284218423 | CW38: 0 | CX38: 0 | CY38: 0 | CZ38: 1.649091397 | DA38: 3.308347712
F39: 21.45 | G39: 0.0001616597464 | I39: 35 | J39: 17.55 | K39: 2.284615385 | L39: -0.8786103594 | M39: 0.3378932703 | N39: -0.1299459548 | O39: 0.04997421573 | P39: -0.01921893021 | Q39: 0.007391157083 | R39: -0.002842468463 | S39: 0.001093147781 | T39: 0 | U39: 0 | V39: 0 | W39: 1.650349463 | Y39: 2.284386934 | Z39: -0.8785225027 | AA39: 0.3378594826 | AB39: -0.1299329609 | AC39: 0.04996921856 | AD39: -0.01921700842 | AE39: 0.007390418004 | AF39: -0.00284218423 | AG39: 0 | AH39: 0 | AI39: 0 | AJ39: 1.649091397 | AK39: 3.30944086 | AN39: 20.475 | AO39: 0.0001616597464 | AQ39: 35 | AR39: 17.075 | AS39: 2.284615385 | AT39: -0.8786103594 | AU39: 0.3378932703 | AV39: -0.1299459548 | AW39: 0.04997421573 | AX39: -0.01921893021 | AY39: 0.007391157083 | AZ39: -0.002842468463 | BA39: 0.001093147781 | BB39: 0 | BC39: 0 | BD39: 0 | BE39: 1.650349463 | BG39: 2.284386934 | BH39: -0.8785225027 | BI39: 0.3378594826 | BJ39: -0.1299329609 | BK39: 0.04996921856 | BL39: -0.01921700842 | BM39: 0.007390418004 | BN39: -0.00284218423 | BO39: 0.001093038472 | BP39: 0 | BQ39: 0 | BR39: 1.650184436 | BS39: 3.310533898 | BV39: 20.475 | BW39: 0.0001616597464 | BY39: 35 | BZ39: 17.075 | CA39: 2.284615385 | CB39: -0.8786103594 | CC39: 0.3378932703 | CD39: -0.1299459548 | CE39: 0.04997421573 | CF39: -0.01921893021 | CG39: 0.007391157083 | CH39: -0.002842468463 | CI39: 0.001093147781 | CJ39: 0 | CK39: 0 | CL39: 0 | CM39: 1.650349463 | CO39: 2.284386934 | CP39: -0.8785225027 | CQ39: 0.3378594826 | CR39: -0.1299329609 | CS39: 0.04996921856 | CT39: -0.01921700842 | CU39: 0.007390418004 | CV39: -0.00284218423 | CW39: 0.001093038472 | CX39: 0 | CY39: 0 | CZ39: 1.650184436 | DA39: 3.310533898
F40: =F29+$B$7 -> 2.45 | I40: 36 | J40: 17.55 | K40: 2.284615385 | L40: -0.8786103594 | M40: 0.3378932703 | N40: -0.1299459548 | O40: 0.04997421573 | P40: -0.01921893021 | Q40: 0.007391157083 | R40: -0.002842468463 | S40: 0.001093147781 | T40: 0 | U40: 0 | V40: 0 | W40: 1.650349463 | Y40: 2.284386934 | Z40: -0.8785225027 | AA40: 0.3378594826 | AB40: -0.1299329609 | AC40: 0.04996921856 | AD40: -0.01921700842 | AE40: 0.007390418004 | AF40: -0.00284218423 | AG40: 0 | AH40: 0 | AI40: 0 | AJ40: 1.649091397 | AK40: 3.30944086 | AN40: =AN29+$B$7 -> 1.475 | AQ40: 36 | AR40: 17.075 | AS40: 2.284615385 | AT40: -0.8786103594 | AU40: 0.3378932703 | AV40: -0.1299459548 | AW40: 0.04997421573 | AX40: -0.01921893021 | AY40: 0.007391157083 | AZ40: -0.002842468463 | BA40: 0.001093147781 | BB40: 0 | BC40: 0 | BD40: 0 | BE40: 1.650349463 | BG40: 2.284386934 | BH40: -0.8785225027 | BI40: 0.3378594826 | BJ40: -0.1299329609 | BK40: 0.04996921856 | BL40: -0.01921700842 | BM40: 0.007390418004 | BN40: -0.00284218423 | BO40: 0.001093038472 | BP40: 0 | BQ40: 0 | BR40: 1.650184436 | BS40: 3.310533898 | BV40: =BV29+$B$7 -> 1.475 | BY40: 36 | BZ40: 17.075 | CA40: 2.284615385 | CB40: -0.8786103594 | CC40: 0.3378932703 | CD40: -0.1299459548 | CE40: 0.04997421573 | CF40: -0.01921893021 | CG40: 0.007391157083 | CH40: -0.002842468463 | CI40: 0.001093147781 | CJ40: 0 | CK40: 0 | CL40: 0 | CM40: 1.650349463 | CO40: 2.284386934 | CP40: -0.8785225027 | CQ40: 0.3378594826 | CR40: -0.1299329609 | CS40: 0.04996921856 | CT40: -0.01921700842 | CU40: 0.007390418004 | CV40: -0.00284218423 | CW40: 0.001093038472 | CX40: 0 | CY40: 0 | CZ40: 1.650184436 | DA40: 3.310533898
F41: =F30+$B$7 -> 4.4 | I41: 37 | J41: 18.05 | K41: 2.284615385 | L41: -0.8786103594 | M41: 0.3378932703 | N41: -0.1299459548 | O41: 0.04997421573 | P41: -0.01921893021 | Q41: 0.007391157083 | R41: -0.002842468463 | S41: 0.001093147781 | T41: -0.0004203994121 | U41: 0 | V41: 0 | W41: 1.649929063 | Y41: 2.284386934 | Z41: -0.8785225027 | AA41: 0.3378594826 | AB41: -0.1299329609 | AC41: 0.04996921856 | AD41: -0.01921700842 | AE41: 0.007390418004 | AF41: -0.00284218423 | AG41: 0.001093038472 | AH41: 0 | AI41: 0 | AJ41: 1.650184436 | AK41: 3.310113499 | AN41: =AN30+$B$7 -> 3.425 | AQ41: 37 | AR41: 18.525 | AS41: 2.284615385 | AT41: -0.8786103594 | AU41: 0.3378932703 | AV41: -0.1299459548 | AW41: 0.04997421573 | AX41: -0.01921893021 | AY41: 0.007391157083 | AZ41: -0.002842468463 | BA41: 0.001093147781 | BB41: 0 | BC41: 0 | BD41: 0 | BE41: 1.650349463 | BG41: 2.284386934 | BH41: -0.8785225027 | BI41: 0.3378594826 | BJ41: -0.1299329609 | BK41: 0.04996921856 | BL41: -0.01921700842 | BM41: 0.007390418004 | BN41: -0.00284218423 | BO41: 0.001093038472 | BP41: 0 | BQ41: 0 | BR41: 1.650184436 | BS41: 3.310533898 | BV41: =BV30+$B$7 -> 3.425 | BY41: 37 | BZ41: 18.525 | CA41: 2.284615385 | CB41: -0.8786103594 | CC41: 0.3378932703 | CD41: -0.1299459548 | CE41: 0.04997421573 | CF41: -0.01921893021 | CG41: 0.007391157083 | CH41: -0.002842468463 | CI41: 0.001093147781 | CJ41: 0 | CK41: 0 | CL41: 0 | CM41: 1.650349463 | CO41: 2.284386934 | CP41: -0.8785225027 | CQ41: 0.3378594826 | CR41: -0.1299329609 | CS41: 0.04996921856 | CT41: -0.01921700842 | CU41: 0.007390418004 | CV41: -0.00284218423 | CW41: 0.001093038472 | CX41: 0 | CY41: 0 | CZ41: 1.650184436 | DA41: 3.310533898
F42: 6.35 | I42: 38 | J42: 18.05 | K42: 2.284615385 | L42: -0.8786103594 | M42: 0.3378932703 | N42: -0.1299459548 | O42: 0.04997421573 | P42: -0.01921893021 | Q42: 0.007391157083 | R42: -0.002842468463 | S42: 0.001093147781 | T42: -0.0004203994121 | U42: 0 | V42: 0 | W42: 1.649929063 | Y42: 2.284386934 | Z42: -0.8785225027 | AA42: 0.3378594826 | AB42: -0.1299329609 | AC42: 0.04996921856 | AD42: -0.01921700842 | AE42: 0.007390418004 | AF42: -0.00284218423 | AG42: 0.001093038472 | AH42: 0 | AI42: 0 | AJ42: 1.650184436 | AK42: 3.310113499 | AN42: 5.375 | AQ42: 38 | AR42: 18.525 | AS42: 2.284615385 | AT42: -0.8786103594 | AU42: 0.3378932703 | AV42: -0.1299459548 | AW42: 0.04997421573 | AX42: -0.01921893021 | AY42: 0.007391157083 | AZ42: -0.002842468463 | BA42: 0.001093147781 | BB42: 0 | BC42: 0 | BD42: 0 | BE42: 1.650349463 | BG42: 2.284386934 | BH42: -0.8785225027 | BI42: 0.3378594826 | BJ42: -0.1299329609 | BK42: 0.04996921856 | BL42: -0.01921700842 | BM42: 0.007390418004 | BN42: -0.00284218423 | BO42: 0.001093038472 | BP42: 0 | BQ42: 0 | BR42: 1.650184436 | BS42: 3.310533898 | BV42: 5.375 | BY42: 38 | BZ42: 18.525 | CA42: 2.284615385 | CB42: -0.8786103594 | CC42: 0.3378932703 | CD42: -0.1299459548 | CE42: 0.04997421573 | CF42: -0.01921893021 | CG42: 0.007391157083 | CH42: -0.002842468463 | CI42: 0.001093147781 | CJ42: 0 | CK42: 0 | CL42: 0 | CM42: 1.650349463 | CO42: 2.284386934 | CP42: -0.8785225027 | CQ42: 0.3378594826 | CR42: -0.1299329609 | CS42: 0.04996921856 | CT42: -0.01921700842 | CU42: 0.007390418004 | CV42: -0.00284218423 | CW42: 0.001093038472 | CX42: 0 | CY42: 0 | CZ42: 1.650184436 | DA42: 3.310533898
F43: 8.3 | I43: 39 | J43: 19.5 | K43: 2.284615385 | L43: -0.8786103594 | M43: 0.3378932703 | N43: -0.1299459548 | O43: 0.04997421573 | P43: -0.01921893021 | Q43: 0.007391157083 | R43: -0.002842468463 | S43: 0.001093147781 | T43: -0.0004203994121 | U43: 0 | V43: 0 | W43: 1.649929063 | Y43: 2.284386934 | Z43: -0.8785225027 | AA43: 0.3378594826 | AB43: -0.1299329609 | AC43: 0.04996921856 | AD43: -0.01921700842 | AE43: 0.007390418004 | AF43: -0.00284218423 | AG43: 0.001093038472 | AH43: 0 | AI43: 0 | AJ43: 1.650184436 | AK43: 3.310113499 | AN43: 7.325 | AQ43: 39 | AR43: 19.025 | AS43: 2.284615385 | AT43: -0.8786103594 | AU43: 0.3378932703 | AV43: -0.1299459548 | AW43: 0.04997421573 | AX43: -0.01921893021 | AY43: 0.007391157083 | AZ43: -0.002842468463 | BA43: 0.001093147781 | BB43: -0.0004203994121 | BC43: 0 | BD43: 0 | BE43: 1.649929063 | BG43: 2.284386934 | BH43: -0.8785225027 | BI43: 0.3378594826 | BJ43: -0.1299329609 | BK43: 0.04996921856 | BL43: -0.01921700842 | BM43: 0.007390418004 | BN43: -0.00284218423 | BO43: 0.001093038472 | BP43: -0.0004203573743 | BQ43: 0 | BR43: 1.649764078 | BS43: 3.309693142 | BV43: 7.325 | BY43: 39 | BZ43: 19.025 | CA43: 2.284615385 | CB43: -0.8786103594 | CC43: 0.3378932703 | CD43: -0.1299459548 | CE43: 0.04997421573 | CF43: -0.01921893021 | CG43: 0.007391157083 | CH43: -0.002842468463 | CI43: 0.001093147781 | CJ43: -0.0004203994121 | CK43: 0 | CL43: 0 | CM43: 1.649929063 | CO43: 2.284386934 | CP43: -0.8785225027 | CQ43: 0.3378594826 | CR43: -0.1299329609 | CS43: 0.04996921856 | CT43: -0.01921700842 | CU43: 0.007390418004 | CV43: -0.00284218423 | CW43: 0.001093038472 | CX43: -0.0004203573743 | CY43: 0 | CZ43: 1.649764078 | DA43: 3.309693142
F44: 10.25 | I44: 40 | J44: 19.5 | K44: 2.284615385 | L44: -0.8786103594 | M44: 0.3378932703 | N44: -0.1299459548 | O44: 0.04997421573 | P44: -0.01921893021 | Q44: 0.007391157083 | R44: -0.002842468463 | S44: 0.001093147781 | T44: -0.0004203994121 | U44: 0 | V44: 0 | W44: 1.649929063 | Y44: 2.284386934 | Z44: -0.8785225027 | AA44: 0.3378594826 | AB44: -0.1299329609 | AC44: 0.04996921856 | AD44: -0.01921700842 | AE44: 0.007390418004 | AF44: -0.00284218423 | AG44: 0.001093038472 | AH44: 0 | AI44: 0 | AJ44: 1.650184436 | AK44: 3.310113499 | AN44: 9.275 | AQ44: 40 | AR44: =MIN($J$50,SMALL(AN$4:AN$50,AQ44)) -> 19.025 | AS44: 2.284615385 | AT44: -0.8786103594 | AU44: 0.3378932703 | AV44: -0.1299459548 | AW44: 0.04997421573 | AX44: -0.01921893021 | AY44: 0.007391157083 | AZ44: -0.002842468463 | BA44: 0.001093147781 | BB44: -0.0004203994121 | BC44: 0 | BD44: 0 | BE44: 1.649929063 | BG44: 2.284386934 | BH44: -0.8785225027 | BI44: 0.3378594826 | BJ44: -0.1299329609 | BK44: 0.04996921856 | BL44: -0.01921700842 | BM44: 0.007390418004 | BN44: -0.00284218423 | BO44: 0.001093038472 | BP44: -0.0004203573743 | BQ44: 0 | BR44: 1.649764078 | BS44: 3.309693142 | BV44: 9.275 | BY44: 40 | BZ44: 19.025 | CA44: 2.284615385 | CB44: -0.8786103594 | CC44: 0.3378932703 | CD44: -0.1299459548 | CE44: 0.04997421573 | CF44: -0.01921893021 | CG44: 0.007391157083 | CH44: -0.002842468463 | CI44: 0.001093147781 | CJ44: -0.0004203994121 | CK44: 0 | CL44: 0 | CM44: 1.649929063 | CO44: 2.284386934 | CP44: -0.8785225027 | CQ44: 0.3378594826 | CR44: -0.1299329609 | CS44: 0.04996921856 | CT44: -0.01921700842 | CU44: 0.007390418004 | CV44: -0.00284218423 | CW44: 0.001093038472 | CX44: -0.0004203573743 | CY44: 0 | CZ44: 1.649764078 | DA44: 3.309693142
F45: 12.2 | I45: 41 | J45: 20 | K45: =IF($J45<K$2,0,IF($J45-K$2>$B$7,K$3,($J45-K$2)/$B$7*K$3)) -> 2.284615385 | L45: -0.8786103594 | M45: 0.3378932703 | N45: -0.1299459548 | O45: 0.04997421573 | P45: -0.01921893021 | Q45: 0.007391157083 | R45: -0.002842468463 | S45: 0.001093147781 | T45: -0.0004203994121 | U45: 0.0001616759132 | V45: 0 | W45: 1.650090739 | Y45: =IF($J45<Y$2,0,IF($J45-Y$2>$B$7,Y$3,($J45-Y$2)/$B$7*Y$3)) -> 2.284386934 | Z45: -0.8785225027 | AA45: 0.3378594826 | AB45: -0.1299329609 | AC45: 0.04996921856 | AD45: -0.01921700842 | AE45: 0.007390418004 | AF45: -0.00284218423 | AG45: 0.001093038472 | AH45: -0.0004203573743 | AI45: 0 | AJ45: 1.649764078 | AK45: 3.309854818 | AN45: 11.225 | AQ45: 41 | AR45: 20.475 | AS45: =IF($AR45<AS$2,0,IF($AR45-AS$2>$B$7,AS$3,($AR45-AS$2)/$B$7*AS$3)) -> 2.284615385 | AT45: -0.8786103594 | AU45: 0.3378932703 | AV45: -0.1299459548 | AW45: 0.04997421573 | AX45: -0.01921893021 | AY45: 0.007391157083 | AZ45: -0.002842468463 | BA45: 0.001093147781 | BB45: -0.0004203994121 | BC45: 0 | BD45: 0 | BE45: 1.649929063 | BG45: =IF($AR45<BG$2,0,IF($AR45-BG$2>$B$7,BG$3,($AR45-BG$2)/$B$7*BG$3)) -> 2.284386934 | BH45: -0.8785225027 | BI45: 0.3378594826 | BJ45: -0.1299329609 | BK45: 0.04996921856 | BL45: -0.01921700842 | BM45: 0.007390418004 | BN45: -0.00284218423 | BO45: 0.001093038472 | BP45: -0.0004203573743 | BQ45: 0 | BR45: 1.649764078 | BS45: 3.309693142 | BV45: 11.225 | BY45: 41 | BZ45: =MIN($J$50,SMALL(BV$4:BV$50,BY45)) -> 20.475 | CA45: =IF($BZ45<CA$2,0,IF($BZ45-CA$2>$B$7,CA$3,($BZ45-CA$2)/$B$7*CA$3)) -> 2.284615385 | CB45: -0.8786103594 | CC45: 0.3378932703 | CD45: -0.1299459548 | CE45: 0.04997421573 | CF45: -0.01921893021 | CG45: 0.007391157083 | CH45: -0.002842468463 | CI45: 0.001093147781 | CJ45: -0.0004203994121 | CK45: 0 | CL45: 0 | CM45: 1.649929063 | CO45: =IF($BZ45<CO$2,0,IF($BZ45-CO$2>$B$7,CO$3,($BZ45-CO$2)/$B$7*CO$3)) -> 2.284386934 | CP45: -0.8785225027 | CQ45: 0.3378594826 | CR45: -0.1299329609 | CS45: 0.04996921856 | CT45: -0.01921700842 | CU45: 0.007390418004 | CV45: -0.00284218423 | CW45: 0.001093038472 | CX45: -0.0004203573743 | CY45: 0 | CZ45: 1.649764078 | DA45: 3.309693142
F46: 14.15 | I46: 42 | J46: 20 | K46: 2.284615385 | L46: -0.8786103594 | M46: 0.3378932703 | N46: -0.1299459548 | O46: 0.04997421573 | P46: -0.01921893021 | Q46: 0.007391157083 | R46: -0.002842468463 | S46: 0.001093147781 | T46: -0.0004203994121 | U46: 0.0001616759132 | V46: 0 | W46: 1.650090739 | Y46: 2.284386934 | Z46: -0.8785225027 | AA46: 0.3378594826 | AB46: -0.1299329609 | AC46: 0.04996921856 | AD46: -0.01921700842 | AE46: 0.007390418004 | AF46: -0.00284218423 | AG46: 0.001093038472 | AH46: -0.0004203573743 | AI46: 0 | AJ46: 1.649764078 | AK46: 3.309854818 | AN46: 13.175 | AQ46: 42 | AR46: 20.475 | AS46: 2.284615385 | AT46: -0.8786103594 | AU46: 0.3378932703 | AV46: -0.1299459548 | AW46: 0.04997421573 | AX46: -0.01921893021 | AY46: 0.007391157083 | AZ46: -0.002842468463 | BA46: 0.001093147781 | BB46: -0.0004203994121 | BC46: 0 | BD46: 0 | BE46: 1.649929063 | BG46: 2.284386934 | BH46: -0.8785225027 | BI46: 0.3378594826 | BJ46: -0.1299329609 | BK46: 0.04996921856 | BL46: -0.01921700842 | BM46: 0.007390418004 | BN46: -0.00284218423 | BO46: 0.001093038472 | BP46: -0.0004203573743 | BQ46: 0 | BR46: 1.649764078 | BS46: 3.309693142 | BV46: 13.175 | BY46: 42 | BZ46: 20.475 | CA46: 2.284615385 | CB46: -0.8786103594 | CC46: 0.3378932703 | CD46: -0.1299459548 | CE46: 0.04997421573 | CF46: -0.01921893021 | CG46: 0.007391157083 | CH46: -0.002842468463 | CI46: 0.001093147781 | CJ46: -0.0004203994121 | CK46: 0 | CL46: 0 | CM46: 1.649929063 | CO46: 2.284386934 | CP46: -0.8785225027 | CQ46: 0.3378594826 | CR46: -0.1299329609 | CS46: 0.04996921856 | CT46: -0.01921700842 | CU46: 0.007390418004 | CV46: -0.00284218423 | CW46: 0.001093038472 | CX46: -0.0004203573743 | CY46: 0 | CZ46: 1.649764078 | DA46: 3.309693142
F47: 16.1 | I47: 43 | J47: 21.45 | K47: 2.284615385 | L47: -0.8786103594 | M47: 0.3378932703 | N47: -0.1299459548 | O47: 0.04997421573 | P47: -0.01921893021 | Q47: 0.007391157083 | R47: -0.002842468463 | S47: 0.001093147781 | T47: -0.0004203994121 | U47: 0.0001616759132 | V47: 0 | W47: 1.650090739 | Y47: 2.284386934 | Z47: -0.8785225027 | AA47: 0.3378594826 | AB47: -0.1299329609 | AC47: 0.04996921856 | AD47: -0.01921700842 | AE47: 0.007390418004 | AF47: -0.00284218423 | AG47: 0.001093038472 | AH47: -0.0004203573743 | AI47: 0 | AJ47: 1.649764078 | AK47: 3.309854818 | AN47: 15.125 | AQ47: 43 | AR47: 20.975 | AS47: 2.284615385 | AT47: -0.8786103594 | AU47: 0.3378932703 | AV47: -0.1299459548 | AW47: 0.04997421573 | AX47: -0.01921893021 | AY47: 0.007391157083 | AZ47: -0.002842468463 | BA47: 0.001093147781 | BB47: -0.0004203994121 | BC47: 0.0001616759132 | BD47: 0 | BE47: 1.650090739 | BG47: 2.284386934 | BH47: -0.8785225027 | BI47: 0.3378594826 | BJ47: -0.1299329609 | BK47: 0.04996921856 | BL47: -0.01921700842 | BM47: 0.007390418004 | BN47: -0.00284218423 | BO47: 0.001093038472 | BP47: -0.0004203573743 | BQ47: 0.0001616597464 | BR47: 1.649925738 | BS47: 3.310016477 | BV47: 15.125 | BY47: 43 | BZ47: 20.975 | CA47: 2.284615385 | CB47: -0.8786103594 | CC47: 0.3378932703 | CD47: -0.1299459548 | CE47: 0.04997421573 | CF47: -0.01921893021 | CG47: 0.007391157083 | CH47: -0.002842468463 | CI47: 0.001093147781 | CJ47: -0.0004203994121 | CK47: 0.0001616759132 | CL47: 0 | CM47: 1.650090739 | CO47: 2.284386934 | CP47: -0.8785225027 | CQ47: 0.3378594826 | CR47: -0.1299329609 | CS47: 0.04996921856 | CT47: -0.01921700842 | CU47: 0.007390418004 | CV47: -0.00284218423 | CW47: 0.001093038472 | CX47: -0.0004203573743 | CY47: 0.0001616597464 | CZ47: 1.649925738 | DA47: 3.310016477
F48: 18.05 | I48: 44 | J48: 21.45 | K48: 2.284615385 | L48: -0.8786103594 | M48: 0.3378932703 | N48: -0.1299459548 | O48: 0.04997421573 | P48: -0.01921893021 | Q48: 0.007391157083 | R48: -0.002842468463 | S48: 0.001093147781 | T48: -0.0004203994121 | U48: 0.0001616759132 | V48: 0 | W48: 1.650090739 | Y48: 2.284386934 | Z48: -0.8785225027 | AA48: 0.3378594826 | AB48: -0.1299329609 | AC48: 0.04996921856 | AD48: -0.01921700842 | AE48: 0.007390418004 | AF48: -0.00284218423 | AG48: 0.001093038472 | AH48: -0.0004203573743 | AI48: 0 | AJ48: 1.649764078 | AK48: 3.309854818 | AN48: 17.075 | AQ48: 44 | AR48: 20.975 | AS48: 2.284615385 | AT48: -0.8786103594 | AU48: 0.3378932703 | AV48: -0.1299459548 | AW48: 0.04997421573 | AX48: -0.01921893021 | AY48: 0.007391157083 | AZ48: -0.002842468463 | BA48: 0.001093147781 | BB48: -0.0004203994121 | BC48: 0.0001616759132 | BD48: 0 | BE48: 1.650090739 | BG48: 2.284386934 | BH48: -0.8785225027 | BI48: 0.3378594826 | BJ48: -0.1299329609 | BK48: 0.04996921856 | BL48: -0.01921700842 | BM48: 0.007390418004 | BN48: -0.00284218423 | BO48: 0.001093038472 | BP48: -0.0004203573743 | BQ48: 0.0001616597464 | BR48: 1.649925738 | BS48: 3.310016477 | BV48: 17.075 | BY48: 44 | BZ48: 20.975 | CA48: 2.284615385 | CB48: -0.8786103594 | CC48: 0.3378932703 | CD48: -0.1299459548 | CE48: 0.04997421573 | CF48: -0.01921893021 | CG48: 0.007391157083 | CH48: -0.002842468463 | CI48: 0.001093147781 | CJ48: -0.0004203994121 | CK48: 0.0001616759132 | CL48: 0 | CM48: 1.650090739 | CO48: 2.284386934 | CP48: -0.8785225027 | CQ48: 0.3378594826 | CR48: -0.1299329609 | CS48: 0.04996921856 | CT48: -0.01921700842 | CU48: 0.007390418004 | CV48: -0.00284218423 | CW48: 0.001093038472 | CX48: -0.0004203573743 | CY48: 0.0001616597464 | CZ48: 1.649925738 | DA48: 3.310016477
F49: 20 | I49: 45 | J49: 21.95 | K49: 2.284615385 | L49: -0.8786103594 | M49: 0.3378932703 | N49: -0.1299459548 | O49: 0.04997421573 | P49: -0.01921893021 | Q49: 0.007391157083 | R49: -0.002842468463 | S49: 0.001093147781 | T49: -0.0004203994121 | U49: 0.0001616759132 | V49: -6.217682553e-05 | W49: 1.650028562 | Y49: 2.284386934 | Z49: -0.8785225027 | AA49: 0.3378594826 | AB49: -0.1299329609 | AC49: 0.04996921856 | AD49: -0.01921700842 | AE49: 0.007390418004 | AF49: -0.00284218423 | AG49: 0.001093038472 | AH49: -0.0004203573743 | AI49: 0.0001616597464 | AJ49: 1.649925738 | AK49: 3.3099543 | AN49: 19.025 | AQ49: 45 | AR49: 21.95 | AS49: 2.284615385 | AT49: -0.8786103594 | AU49: 0.3378932703 | AV49: -0.1299459548 | AW49: 0.04997421573 | AX49: -0.01921893021 | AY49: 0.007391157083 | AZ49: -0.002842468463 | BA49: 0.001093147781 | BB49: -0.0004203994121 | BC49: 0.0001616759132 | BD49: 0 | BE49: 1.650090739 | BG49: 2.284386934 | BH49: -0.8785225027 | BI49: 0.3378594826 | BJ49: -0.1299329609 | BK49: 0.04996921856 | BL49: -0.01921700842 | BM49: 0.007390418004 | BN49: -0.00284218423 | BO49: 0.001093038472 | BP49: -0.0004203573743 | BQ49: 0.0001616597464 | BR49: 1.649925738 | BS49: 3.310016477 | BV49: 19.025 | BY49: 45 | BZ49: 21.95 | CA49: 2.284615385 | CB49: -0.8786103594 | CC49: 0.3378932703 | CD49: -0.1299459548 | CE49: 0.04997421573 | CF49: -0.01921893021 | CG49: 0.007391157083 | CH49: -0.002842468463 | CI49: 0.001093147781 | CJ49: -0.0004203994121 | CK49: 0.0001616759132 | CL49: 0 | CM49: 1.650090739 | CO49: 2.284386934 | CP49: -0.8785225027 | CQ49: 0.3378594826 | CR49: -0.1299329609 | CS49: 0.04996921856 | CT49: -0.01921700842 | CU49: 0.007390418004 | CV49: -0.00284218423 | CW49: 0.001093038472 | CX49: -0.0004203573743 | CY49: 0.0001616597464 | CZ49: 1.649925738 | DA49: 3.310016477
F50: 21.95 | I50: 46 | J50: 21.95 | K50: 2.284615385 | L50: -0.8786103594 | M50: 0.3378932703 | N50: -0.1299459548 | O50: 0.04997421573 | P50: -0.01921893021 | Q50: 0.007391157083 | R50: -0.002842468463 | S50: 0.001093147781 | T50: -0.0004203994121 | U50: 0.0001616759132 | V50: -6.217682553e-05 | W50: 1.650028562 | Y50: 2.284386934 | Z50: -0.8785225027 | AA50: 0.3378594826 | AB50: -0.1299329609 | AC50: 0.04996921856 | AD50: -0.01921700842 | AE50: 0.007390418004 | AF50: -0.00284218423 | AG50: 0.001093038472 | AH50: -0.0004203573743 | AI50: 0.0001616597464 | AJ50: 1.649925738 | AK50: 3.3099543 | AN50: 20.975 | AQ50: 46 | AR50: =MIN($J$50,SMALL(AN$4:AN$50,AQ50)) -> 21.95 | AS50: 2.284615385 | AT50: -0.8786103594 | AU50: 0.3378932703 | AV50: -0.1299459548 | AW50: 0.04997421573 | AX50: -0.01921893021 | AY50: 0.007391157083 | AZ50: -0.002842468463 | BA50: 0.001093147781 | BB50: -0.0004203994121 | BC50: 0.0001616759132 | BD50: 0 | BE50: 1.650090739 | BG50: 2.284386934 | BH50: -0.8785225027 | BI50: 0.3378594826 | BJ50: -0.1299329609 | BK50: 0.04996921856 | BL50: -0.01921700842 | BM50: 0.007390418004 | BN50: -0.00284218423 | BO50: 0.001093038472 | BP50: -0.0004203573743 | BQ50: 0.0001616597464 | BR50: 1.649925738 | BS50: 3.310016477 | BV50: 20.975 | BY50: 46 | BZ50: 21.95 | CA50: 2.284615385 | CB50: -0.8786103594 | CC50: 0.3378932703 | CD50: -0.1299459548 | CE50: 0.04997421573 | CF50: -0.01921893021 | CG50: 0.007391157083 | CH50: -0.002842468463 | CI50: 0.001093147781 | CJ50: -0.0004203994121 | CK50: 0.0001616759132 | CL50: 0 | CM50: 1.650090739 | CO50: 2.284386934 | CP50: -0.8785225027 | CQ50: 0.3378594826 | CR50: -0.1299329609 | CS50: 0.04996921856 | CT50: -0.01921700842 | CU50: 0.007390418004 | CV50: -0.00284218423 | CW50: 0.001093038472 | CX50: -0.0004203573743 | CY50: 0.0001616597464 | CZ50: 1.649925738 | DA50: 3.310016477
